{"text_format":"1","workbook":"xlsx","n_sheets":4,"sheets":["690 A Belts cross","690 sources","description","Sheet5"],"not_rendered":{"charts":0,"images":0,"macros":1,"external_links":0,"defined_names":2,"comments":0,"pivot_tables":0},"unopened":[],"bounds":{"document_bytes":16777216,"sheet_cells":100000,"rows_first":2000,"rows_last":500,"rows_between":2000,"halvings":0,"cell_chars":16384,"cell_head_chars":4096},"cells_cut":0,"cells_raw":0,"read":"whole","date_system":"1900"}

{"sheet":"690 A Belts cross","index":0,"n_rows":63,"n_cols":12,"rows_kept":63,"cut":false,"hidden":false,"merged":[]}
["No.","Category number","Category name","NSC SKU","NSC Description","Long description","Gates\nSKU","Jason\nSKU","Dayco\nSKU","Mars\nSKU ","4L belts number \n(A belts are similar to 4L)","Notes"]
[1,"690"," A-BELTS","90022021","690 - A-21 GATES (HI-POWER)BELT","Hi-Power® II Belts / Courroies Hi-PowerMD II\nGates A21 V-belt Hi-Power II V80 Series. Belt outside circumference length of 23 inches. Belt Height: 5/16 Belt Top Width: 1/2 Outside Circumference (in):23. These belts resist oil, heat, ozone, sunlight, weather, and aging. Meets ARPM / RMA IP-3-2 oil and heat-resistant standards and ARPM / RMA IP-3-3 static conductivity requirements.","A21","A21 (4L230)","AP21","94325","4L230"]
[2,"690"," A-BELTS","90022022","690 - A-22 GATES (HI-POWER)BELT","Hi-Power® II Belts / Courroies Hi-PowerMD II\nGates A22 V-belt Hi-Power II V80 Series. Belt outside circumference length of 24 inches. Belt Height: 5/16 Belt Top Width: 1/2 Outside Circumference (in):24. These belts resist oil, heat, ozone, sunlight, weather, and aging. Meets ARPM / RMA IP-3-2 oil and heat-resistant standards and ARPM / RMA IP-3-3 static conductivity requirements.","A22","A22 (4L240)","AP22","94326","4L240"]
[3,"690"," A-BELTS","90022023","690 - A-23,GATES(HI-POWER)BELT","Hi-Power® II Belts / Courroies Hi-PowerMD II\nGates A23 V-belt Hi-Power II V80 Series. Belt outside circumference length of 25 inches. Belt Height: 5/16 Belt Top Width: 1/2 Outside Circumference (in):25. These belts resist oil, heat, ozone, sunlight, weather, and aging. Meets ARPM / RMA IP-3-2 oil and heat-resistant standards and ARPM / RMA IP-3-3 static conductivity requirements.","A23","A23 (4L250)","AP23","94327","4L250"]
[4,"690"," A-BELTS","90022025","690 - A-25,GATES(HI-POWER)BELT","Hi-Power® II Belts / Courroies Hi-PowerMD II\nGates A25 V-belt Hi-Power II V80 Series. Belt outside circumference length of 27 inches. Belt Height: 5/16 Belt Top Width: 1/2 Outside Circumference (in):27. These belts resist oil, heat, ozone, sunlight, weather, and aging. Meets ARPM / RMA IP-3-2 oil and heat-resistant standards and ARPM / RMA IP-3-3 static conductivity requirements.","A25","A25 (4L270)","AP25",94329,"4L270"]
[5,"690"," A-BELTS","90022026","690 - A-26,GATES(HI-POWER)BELT","Hi-Power® II Belts / Courroies Hi-PowerMD II\nGates A26 V-belt Hi-Power II V80  Series. Belt outside circumference length of 28 inches.  Belt Height: 5/16 Belt Top Width: 1/2 Outside Circumference (in): 28 These belts resist oil, heat, ozone,\nsunlight, weather, and aging. Meets ARPM / RMA IP-3-2 oil and heat-resistant standards and ARPM / RMA IP-3-3 static conductivity requirements.","A26","A26 (4L280)","AP26",94330,"4L280"]
[6,"690"," A-BELTS","90022027","690 - A-27,GATES(HI-POWER)BELT","Hi-Power® II Belts / Courroies Hi-PowerMD II\nGates A27 V-belt Hi-Power II V80  Series. Belt outside circumference length of 29 inches.  Belt Height: 5/16 Belt Top Width: 1/2 Outside Circumference (in): 29 These belts resist oil, heat, ozone,\nsunlight, weather, and aging. Meets ARPM / RMA IP-3-2 oil and heat-resistant standards and ARPM / RMA IP-3-3 static conductivity requirements.","A27","A27 (4L290)","AP27",94331,"4L290"]
[7,"690"," A-BELTS","90022028","690 - A-28,GATES(HI-POWER)BELT","Hi-Power® II Belts / Courroies Hi-PowerMD II\nGates A28 V-belt Hi-Power II V80 Series. Belt outside circumference length of 30 inches. Belt Height: 5/16 Belt Top Width: 1/2 Outside Circumference (in):30. These belts resist oil, heat, ozone, sunlight, weather, and aging. Meets ARPM / RMA IP-3-2 oil and heat-resistant standards and ARPM / RMA IP-3-3 static conductivity requirements.","A28","A28 (4L300)","AP28",94332,"4L300"]
[8,"690"," A-BELTS","90022029","690 - A-29,GATES(HI-POWER)BELT","Hi-Power® II Belts / Courroies Hi-PowerMD II\nGates A29 V-belt Hi-Power II V80 Series. Belt outside circumference length of 31 inches. Belt Height: 5/16 Belt Top Width: 1/2 Outside Circumference (in): 31. These belts resist oil, heat, ozone, sunlight, weather, and aging. Meets ARPM / RMA IP-3-2 oil and heat-resistant standards and ARPM / RMA IP-3-3 static conductivity requirements.","A29","A29 (4L310)","AP29",null,"4L310"]
[9,"690"," A-BELTS","90022030","690 - A-30,GATES(HI-POWER)BELT","Hi-Power® II Belts / Courroies Hi-PowerMD II\nGates A30 V-belt Hi-Power II V80 Series. Belt outside circumference length of 32 inches. Belt Height: 5/16 Belt Top Width: 1/2 Outside Circumference (in): 32 These belts resist oil, heat, ozone, sunlight, weather, and aging. Meets ARPM / RMA IP-3-2 oil and heat-resistant standards and ARPM / RMA IP-3-3 static conductivity requirements.","A30","A30 (4L320)","AP30",null,"4L320"]
[10,"690"," A-BELTS","90022031","690 - A-31,GATES(HI-POWER)BELT","Hi-Power® II Belts / Courroies Hi-PowerMD II\nGates A31 V-belt Hi-Power II V80 Series. Belt outside circumference length of 33 inches. Belt Height: 5/16 Belt Top Width: 1/2 Outside Circumference (in): 33 These belts resist oil, heat, ozone, sunlight, weather, and aging. Meets ARPM / RMA IP-3-2 oil and heat-resistant standards and ARPM / RMA IP-3-3 static conductivity requirements.","A31","A31 (4L340)","AP31",94335,"4L330"]
[11,"690"," A-BELTS","90022032","690 - A-32,GATES(HI-POWER)BELT","Hi-Power® II Belts / Courroies Hi-PowerMD II\nGates A32 V-belt Hi-Power II V80 Series. Belt outside circumference length of 34 inches. Belt Height: 5/16 Belt Top Width: 1/2 Outside Circumference (in): 34. These belts resist oil, heat, ozone, sunlight, weather, and aging. Meets ARPM / RMA IP-3-2 oil and heat-resistant standards and ARPM / RMA IP-3-3 static conductivity requirements.","A32","A32 (4L340)","AP32","94336","4L340"]
[12,"690"," A-BELTS","90022033","690 - A-33,GATES(HI-POWER)BELT","Hi-Power® II Belts / Courroies Hi-PowerMD II\nGates A33 V-belt Hi-Power II V80 Series. Belt outside circumference length of 35 inches. Belt Height: 5/16 Belt Top Width: 1/2 Outside Circumference (in): 35. These belts resist oil, heat, ozone, sunlight, weather, and aging. Meets ARPM / RMA IP-3-2 oil and heat-resistant standards and ARPM / RMA IP-3-3 static conductivity requirements.","A33","A33 4L350)","AP33",94337,"4L350"]
[13,"690"," A-BELTS","90022034","690 - A-34,GATES(HI-POWER)BELT","Hi-Power® II Belts / Courroies Hi-PowerMD II\nGates A34 V-belt Hi-Power II V80 Series. Belt outside circumference length of 36 inches. Belt Height: 5/16 Belt Top Width: 1/2\nOutside Circumference (in): 36. These belts resist oil, heat, ozone,\nsunlight, weather, and aging. Meets ARPM / RMA IP-3-2 oil and \nheat-resistant standards and ARPM / RMA IP-3-3 static conductivity requirements.","A34","A34 (4L360)","AP34",94338,"4L360"]
[14,"690"," A-BELTS","90022035","690 - A-35,GATES(HI-POWER)BELT","Hi-Power® II Belts / Courroies Hi-PowerMD II\nGates A35 V-belt Hi-Power II V80 Series. Belt outside circumference length of 37 inches. Belt Height: 5/16 Belt Top Width: 1/2 Outside Circumference (in): 37. These belts resist oil, heat, ozone, sunlight, weather, and aging. Meets ARPM / RMA IP-3-2 oil and heat-resistant standards and ARPM / RMA IP-3-3 static conductivity requirements.","A35","A35 (4L370)","AP35",94339,"4L370"]
[15,"690"," A-BELTS","90022036","690 - A-36,GATES(HI-POWER)BELT","Hi-Power® II Belts / Courroies Hi-PowerMD II\nGates A36 V-belt Hi-Power II V80 Series. Belt outside circumference length of 38 inches. Belt Height: 5/16 Belt Top Width: 1/2 Outside Circumference (in): 38. These belts resist oil, heat, ozone, sunlight, weather, and aging. Meets ARPM / RMA IP-3-2 oil and heat-resistant standards and ARPM / RMA IP-3-3 static conductivity requirements.","A36","A36 (4L380)","AP36","94340","4L380"]
[16,"690"," A-BELTS","90022037","690 - A-37,GATES(HI-POWER)BELT","Hi-Power® II Belts / Courroies Hi-PowerMD II\nGates A37 V-belt Hi-Power II V80 Series. Belt outside circumference length of 39 inches. Belt Height: 5/16 Belt Top Width: 1/2 Outside Circumference (in): 39. These belts resist oil, heat, ozone, sunlight, weather, and aging. Meets ARPM / RMA IP-3-2 oil and heat-resistant standards and ARPM / RMA IP-3-3 static conductivity requirements.","A37","A37 (4L390)","AP37","94341","4L390"]
[17,"690"," A-BELTS","90022038","690 - A-38,GATES(HI-POWER)BELT","Hi-Power® II Belts / Courroies Hi-PowerMD II\nGates A38 V-belt Hi-Power II V80 Series. Belt outside circumference length of 40 inches. Belt Height: 5/16 Belt Top Width: 1/2 Outside Circumference (in): 40. These belts resist oil, heat, ozone, sunlight, weather, and aging. Meets ARPM / RMA IP-3-2 oil and  heat-resistant standards and ARPM / RMA IP-3-3 static conductivity requirements.","A38","A38 (4L400)","AP38","94342","4L400"]
[18,"690"," A-BELTS","90022039","690 - A-39,GATES(HI-POWER)BELT","Hi-Power® II Belts / Courroies Hi-PowerMD II\nGates A39 V-belt Hi-Power II V80 Series. Belt outside circumference length of 41 inches. Belt Height: 5/16 Belt Top Width: 1/2 Outside Circumference (in): 41. These belts resist oil, heat, ozone,sunlight, weather, and aging. Meets ARPM / RMA IP-3-2 oil and heat-resistant standards and ARPM / RMA IP-3-3 static conductivity requirements.","A39","A39 (4L410)","AP39","94343","4L410"]
[19,"690"," A-BELTS","90022040","690 - A-40,GATES(HI-POWER)BELT","Hi-Power® II Belts / Courroies Hi-PowerMD II\nGates A40 V-belt Hi-Power II V80 Series. Belt outside circumference length of 42 inches. Belt Height: 5/16 Belt Top Width: 1/2 Outside Circumference (in): 42. These belts resist oil, heat, ozone, sunlight, weather, and aging. Meets ARPM / RMA IP-3-2 oil and \nheat-resistant standards and ARPM / RMA IP-3-3 static conductivity requirements.","A40","A40 (4L420)","AP40","94344","4L420"]
[20,"690"," A-BELTS","90022041","690 - A-41,GATES(HI-POWER)BELT","Hi-Power® II Belts / Courroies Hi-PowerMD II\nGates A41 V-belt Hi-Power II V80 Series. Belt Height: 5/16 Belt Top Width: 1/2 Outside Circumference (in): 43. These belts resist oil, heat, ozone, sunlight, weather, and aging. Meets ARPM / RMA IP-3-2 oil and heat-resistant standards and ARPM / RMA IP-3-3 static conductivity requirements.","A41","A41 (4L430)","AP41","94345","4L430"]
[21,"690"," A-BELTS","90022042","690 - A-42,GATES(HI-POWER)BELT","Hi-Power® II Belts / Courroies Hi-PowerMD II\nGates A42 V-belt Hi-Power II V80 Series. Belt outside circumference length of 44 inches. Belt Height: 5/16 Belt Top Width: 1/2 Outside Circumference (in): 44. These belts resist oil, heat, ozone, sunlight, weather, and aging. Meets ARPM / RMA IP-3-2 oil and heat-resistant standards and ARPM / RMA IP-3-3 static conductivity requirements.","A42","A42 (4L440)","AP42","94346","4L440"]
[22,"690"," A-BELTS","90022043","690 - A-43,GATES(HI-POWER)BELT","Hi-Power® II Belts / Courroies Hi-PowerMD II\nGates A43 V-belt Hi-Power II V80 Series. Belt outside circumference length of 45 inches. Belt Height: 5/16 Belt Top Width: 1/2 Outside Circumference (in): 45. These belts resist oil, heat, ozone, sunlight, weather, and aging. Meets ARPM / RMA IP-3-2 oil and heat-resistant standards and ARPM / RMA IP-3-3 static conductivity requirements.","A43","A43 (4L450)","AP43","94347","4L450"]
[23,"690"," A-BELTS","90022044","690 - A-44,GATES(HI-POWER)BELT","Hi-Power® II Belts / Courroies Hi-PowerMD II\nGates A44 V-belt Hi-Power II V80 Series. Belt outside circumference length of 46 inches. Belt Height: 5/16 Belt Top Width: 1/2 Outside Circumference (in): 46. These belts resist oil, heat, ozone, sunlight, weather, and aging. Meets ARPM / RMA IP-3-2 oil and heat-resistant standards and ARPM / RMA IP-3-3 static conductivity requirements.","A44","A44 (4L460)","AP44","94348","4L460"]
[24,"690"," A-BELTS","90022045","690 - A-45,GATES(HI-POWER)BELT","Hi-Power® II Belts / Courroies Hi-PowerMD II\nGates A45 V-belt Hi-Power II V80 Series. Belt outside circumference length of 47 inches. Belt Height: 5/16 Belt Top Width: 1/2 Outside Circumference (in): 47. These belts resist oil, heat, ozone, sunlight, weather, and aging. Meets ARPM / RMA IP-3-2 oil and  heat-resistant standards and ARPM / RMA IP-3-3 static conductivity requirements.","A45","A45 (4L470)","AP45","94349","4L470"]
[25,"690"," A-BELTS","90022046","690 - A-46,GATES(HI-POWER)BELT","Hi-Power® II Belts / Courroies Hi-PowerMD II\nGates A46 V-belt Hi-Power II V80 Series. Belt outside circumference length of 48 inches. Belt Height: 5/16 Belt Top Width: 1/2 Outside Circumference (in): 48. These belts resist oil, heat, ozone, sunlight, weather, and aging. Meets ARPM / RMA IP-3-2 oil and heat-resistant standards and ARPM / RMA IP-3-3 static conductivity requirements.","A46","A46 (4L480)","AP46","94350","4L480"]
[26,"690"," A-BELTS","90022047","690 - A-47,GATES(HI-POWER)BELT","Hi-Power® II Belts / Courroies Hi-PowerMD II\nGates A47 V-belt Hi-Power II V80 Series. Belt outside circumference length of 49 inches. Belt Height: 5/16 Belt Top Width: 1/2 Outside Circumference (in): 49. These belts resist oil, heat, ozone, sunlight, weather, and aging. Meets ARPM / RMA IP-3-2 oil and heat-resistant standards and ARPM / RMA IP-3-3 static conductivity requirements.","A47","A47 (4L490)","AP47","94351","4L490"]
[27,"690"," A-BELTS","90022048","690 - A-48,GATES(HI-POWER)BELT","Hi-Power® II Belts / Courroies Hi-PowerMD II\nGates A48 V-belt Hi-Power II V80 Series. Belt outside circumference length of 50 inches. Belt Height: 5/16 Belt Top Width: 1/2 Outside Circumference (in): 50. These belts resist oil, heat, ozone, sunlight, weather, and aging. Meets ARPM / RMA IP-3-2 oil and heat-resistant standards and ARPM / RMA IP-3-3 static conductivity requirements.","A48","A48 (4L500)","AP48","94352","4L500"]
[28,"690"," A-BELTS","90022049","690 - A-49,GATES(HI-POWER)BELT","Hi-Power® II Belts / Courroies Hi-PowerMD II\nGates A49 V-belt Hi-Power II V80 Series. Belt outside circumference length of 51 inches. Belt Height: 5/16 Belt Top Width: 1/2\nOutside Circumference (in): 51. These belts resist oil, heat, ozone,\nsunlight, weather, and aging. Meets ARPM / RMA IP-3-2 oil and \nheat-resistant standards and ARPM / RMA IP-3-3 static conductivity requirements.","A49","A49( 4L510)","AP49","94353","4L510"]
[29,"690"," A-BELTS","90022050","690 - A-50,GATES(HI-POWER)BELT","Hi-Power® II Belts / Courroies Hi-PowerMD II\nGates A50 V-belt Hi-Power II V80 Series. Belt outside circumference length of 52 inches. Belt Height: 5/16 Belt Top Width: 1/2 Outside Circumference (in): 52. These belts resist oil, heat, ozone, sunlight, weather, and aging. Meets ARPM / RMA IP-3-2 oil and heat-resistant standards and ARPM / RMA IP-3-3 static conductivity requirements.","A50","A50 (4L520)","AP50","94354","4L520"]
[30,"690"," A-BELTS","90022051","690 - A-51,GATES(HI-POWER)BELT","Hi-Power® II Belts / Courroies Hi-PowerMD II\nGates A51 V-belt Hi-Power II V80 Series. Belt outside circumference length of 53 inches. Belt Height: 5/16 Belt Top Width: 1/2 Outside Circumference (in): 53. These belts resist oil, heat, ozone, sunlight, weather, and aging. Meets ARPM / RMA IP-3-2 oil and heat-resistant standards and ARPM / RMA IP-3-3 static conductivity requirements.","A51","A51 (4L530)","AP51","94355","4L530"]
[31,"690"," A-BELTS","90022052","690 - A-52,GATES(HI-POWER)BELT","Hi-Power® II Belts / Courroies Hi-PowerMD II\nGates A52 V-belt Hi-Power II V80 Series. Belt outside circumference length of 54 inches. Belt Height: 5/16 Belt Top Width: 1/2 Outside Circumference (in): 54. These belts resist oil, heat, ozone, sunlight, weather, and aging. Meets ARPM / RMA IP-3-2 oil and heat-resistant standards and ARPM / RMA IP-3-3 static conductivity requirements.","A52","A52 (4L540)","AP52","94356","4L540"]
[32,"690"," A-BELTS","90022053","690 - A-53,GATES(HI-POWER)BELT","Hi-Power® II Belts / Courroies Hi-PowerMD II\nGates A53 V-belt Hi-Power II V80 Series. Belt outside circumference length of 55 inches. Belt Height: 5/16 Belt Top Width: 1/2 Outside Circumference (in): 55. These belts resist oil, heat, ozone, sunlight, weather, and aging. Meets ARPM / RMA IP-3-2 oil and heat-resistant standards and ARPM / RMA IP-3-3 static conductivity requirements.","A53","A53 (4L50)","AP53","94357","4L550"]
[33,"690"," A-BELTS","90022054","690 - A-54,GATES(HI-POWER)BELT","Hi-Power® II Belts / Courroies Hi-PowerMD II\nGates A54 V-belt Hi-Power II V80 Series. Belt outside circumference length of 56 inches. Belt Height: 5/16 Belt Top Width: 1/2 Outside Circumference (in): 56. These belts resist oil, heat, ozone, sunlight, weather, and aging. Meets ARPM / RMA IP-3-2 oil and heat-resistant standards and ARPM / RMA IP-3-3 static conductivity requirements.","A54","A54 (4L560)","AP54","94358","4L560"]
[34,"690"," A-BELTS","90022055","690 - A-55,GATES(HI-POWER)BELT","Hi-Power® II Belts / Courroies Hi-PowerMD II\nGates A55 V-belt Hi-Power II V80 Series. Belt outside circumference length of 57 inches. Belt Height: 5/16 Belt Top Width: 1/2 Outside Circumference (in): 57. These belts resist oil, heat, ozone, sunlight, weather, and aging. Meets ARPM / RMA IP-3-2 oil and heat-resistant standards and ARPM / RMA IP-3-3 static conductivity requirements.","A55","A55 (4L570)","AP55","94359","4L570"]
[35,"690"," A-BELTS","90022056","690 - A-56,GATES(HI-POWER)BELT","Hi-Power® II Belts / Courroies Hi-PowerMD II\nGates A56 V-belt Hi-Power II V80 Series. Belt outside circumference length of 58 inches. Belt Height: 5/16 Belt Top Width: 1/2 Outside Circumference (in): 58. These belts resist oil, heat, ozone, sunlight, weather, and aging. Meets ARPM / RMA IP-3-2 oil and heat-resistant standards and ARPM / RMA IP-3-3 static conductivity requirements.","A56","A56 (4L580)","AP56","94360","4L580"]
[36,"690"," A-BELTS","90022057","690 - A-57,GATES(HI-POWER)BELT","Hi-Power® II Belts / Courroies Hi-PowerMD II\nGates A57 V-belt Hi-Power II V80 Series. Belt outside circumference length of 59 inches. Belt Height: 5/16 Belt Top Width: 1/2 Outside Circumference (in):59. These belts resist oil, heat, ozone, sunlight, weather, and aging. Meets ARPM / RMA IP-3-2 oil and heat-resistant standards and ARPM / RMA IP-3-3 static conductivity requirements.","A57","A57 (4L590)","AP57",null,"4L590"]
[37,"690"," A-BELTS","90022058","690 - A-58,GATES(HI-POWER)BELT","Hi-Power® II Belts / Courroies Hi-PowerMD II\nGates A41 V-belt Hi-Power II V80 Series. Belt Height: 5/16 Belt Top Width: 1/2 Outside Circumference (in): 60. These belts resist oil, heat, ozone, sunlight, weather, and aging. Meets ARPM / RMA IP-3-2 oil and heat-resistant standards and ARPM / RMA IP-3-3 static conductivity requirements.","A58","A58 (4L600)","AP58",null,"4L600"]
[38,"690"," A-BELTS","90022059","690 - A-59,GATES(HI-POWER)BELT","Hi-Power® II Belts / Courroies Hi-PowerMD II\nGates A59 V-belt Hi-Power II V80 Series. Belt outside circumference length of 61 inches. Belt Height: 5/16 Belt Top Width: 1/2 Outside Circumference (in):61. These belts resist oil, heat, ozone, sunlight, weather, and aging. Meets ARPM / RMA IP-3-2 oil and heat-resistant standards and ARPM / RMA IP-3-3 static conductivity requirements.","A59","A59 (4L610)","AP59",null,"4L610"]
[39,"690"," A-BELTS","90022060","690 - A-60,GATES(HI-POWER)BELT","Hi-Power® II Belts / Courroies Hi-PowerMD II\nGates A60 V-belt Hi-Power II V80 Series. Belt outside circumference length of 62 inches.  Belt Height: 5/16 Belt Top Width: 1/2 Outside Circumference (in):62. These belts resist oil, heat, ozone, sunlight, weather, and aging. Meets ARPM / RMA IP-3-2 oil and heat-resistant standards and ARPM / RMA IP-3-3 static conductivity requirements.","A60","A60 (4L620)","AP60",null,"4L620"]
[40,"690"," A-BELTS","90022061","690 - A-61,GATES(HI-POWER)BELT","Hi-Power® II Belts / Courroies Hi-PowerMD II\nGates A61 V-belt Hi-Power II V80 Series. Belt outside circumference length of 63 inches. Belt Height: 5/16 Belt Top Width: 1/2 Outside Circumference (in):63. These belts resist oil, heat, ozone, sunlight, weather, and aging. Meets ARPM / RMA IP-3-2 oil and heat-resistant standards and ARPM / RMA IP-3-3 static conductivity requirements.","A61","A61 (4L630)","AP61",null,"4L630"]
[41,"690"," A-BELTS","90022062","690 - A-62,GATES(HI-POWER)BELT","Hi-Power® II Belts / Courroies Hi-PowerMD II\nGates A62 V-belt Hi-Power II V80 Series. Belt outside circumference length of 64 inches. Belt Height: 5/16 Belt Top Width: 1/2 Outside Circumference (in): 64. These belts resist oil, heat, ozone, sunlight, weather, and aging. Meets ARPM / RMA IP-3-2 oil and heat-resistant standards and ARPM / RMA IP-3-3 static conductivity requirements.","A62","A62 (4L640)","AP62",null,"4L640"]
[42,"690"," A-BELTS","90022063","690 - A-63,GATES(HI-POWER)BELT","Hi-Power® II Belts / Courroies Hi-PowerMD II\nGates A63 V-belt Hi-Power II V80 Series. Belt outside circumference length of 65 inches. Belt Height: 5/16 Belt Top Width: 1/2 Outside Circumference (in):65. These belts resist oil, heat, ozone, sunlight, weather, and aging. Meets ARPM / RMA IP-3-2 oil and heat-resistant standards and ARPM / RMA IP-3-3 static conductivity requirements.","A63","A63 (4L650)","AP63",null,"4L650"]
[43,"690"," A-BELTS","90022064","690 - A-64,GATES(HI-POWER)BELT","Hi-Power® II Belts / Courroies Hi-PowerMD II\nGates A64 V-belt Hi-Power II V80 Series. Belt outside circumference length of 66 inches. Belt Height: 5/16 Belt Top Width: 1/2 Outside Circumference (in):66. These belts resist oil, heat, ozone, sunlight, weather, and aging. Meets ARPM / RMA IP-3-2 oil and heat-resistant standards and ARPM / RMA IP-3-3 static conductivity requirements.","A64","A64 (4L660)","AP64","94370","4L660"]
[44,"690"," A-BELTS","90022065","690 - A-65,GATES(HI-POWER)BELT","Hi-Power® II Belts / Courroies Hi-PowerMD II\nGates A65 V-belt Hi-Power II V80 Series. Belt outside circumference length of 67 inches. Belt Height: 5/16 Belt Top Width: 1/2 Outside Circumference (in):67. These belts resist oil, heat, ozone, sunlight, weather, and aging. Meets ARPM / RMA IP-3-2 oil and heat-resistant standards and ARPM / RMA IP-3-3 static conductivity requirements.","A65","A65 (4L670)","AP65",null,"4L670"]
[45,"690"," A-BELTS","90022066","690 - A-66,GATES(HI-POWER)BELT","Hi-Power® II Belts / Courroies Hi-PowerMD II\nGates A66 V-belt Hi-Power II V80 Series. Belt outside circumference length of 68 inches. Belt Height: 5/16 Belt Top Width: 1/2 Outside Circumference (in):68. These belts resist oil, heat, ozone, sunlight, weather, and aging. Meets ARPM / RMA IP-3-2 oil and heat-resistant standards and ARPM / RMA IP-3-3 static conductivity requirements.","A66","A66 (4L680)","AP66",null,"4L680"]
[46,"690"," A-BELTS","90022067","690 - A-67,GATES(HI-POWER)BELT","Hi-Power® II Belts / Courroies Hi-PowerMD II\nGates A67 V-belt Hi-Power II V80 Series. Belt outside circumference length of 69 inches. Belt Height: 5/16 Belt Top Width: 1/2 Outside Circumference (in):69. These belts resist oil, heat, ozone, sunlight, weather, and aging. Meets ARPM / RMA IP-3-2 oil and heat-resistant standards and ARPM / RMA IP-3-3 static conductivity requirements.","A67","A67 (4L690)","AP67",null,"4L690"]
[47,"690"," A-BELTS","90022068","690 - A-68,GATES(HI-POWER)BELT","Hi-Power® II Belts / Courroies Hi-PowerMD II\nGates A68 V-belt Hi-Power II V80 Series. Belt outside circumference length of 70 inches. Belt Height: 5/16 Belt Top Width: 1/2 Outside Circumference (in):70. These belts resist oil, heat, ozone, sunlight, weather, and aging. Meets ARPM / RMA IP-3-2 oil and heat-resistant standards and ARPM / RMA IP-3-3 static conductivity requirements.","A68","A68 (4L700)","AP68",null,"4L700"]
[48,"690"," A-BELTS","90022069","690 - A-69,GATES(HI-POWER)BELT","Hi-Power® II Belts / Courroies Hi-PowerMD II\nGates A69 V-belt Hi-Power II V80 Series. Belt outside circumference length of 71 inches. Belt Height: 5/16 Belt Top Width: 1/2 Outside Circumference (in):71. These belts resist oil, heat, ozone, sunlight, weather, and aging. Meets ARPM / RMA IP-3-2 oil and heat-resistant standards and ARPM / RMA IP-3-3 static conductivity requirements.","A69","A69 (4L710)","AP69",null,"4L710"]
[49,"690"," A-BELTS","90022070","690 - A-70,GATES(HI-POWER)BELT","Hi-Power® II Belts / Courroies Hi-PowerMD II\nGates A70 V-belt Hi-Power II V80 Series. Belt outside circumference length of 72 inches. Belt Height: 5/16 Belt Top Width: 1/2 Outside Circumference (in):72. These belts resist oil, heat, ozone, sunlight, weather, and aging. Meets ARPM / RMA IP-3-2 oil and heat-resistant standards and ARPM / RMA IP-3-3 static conductivity requirements.","A70","A70 (4L720)","AP70",null,"4L720"]
[50,"690"," A-BELTS","90022072","690 - A-72,GATES(HI-POWER)BELT","Hi-Power® II Belts / Courroies Hi-PowerMD II\nGates A72 V-belt Hi-Power II V80 Series. Belt outside circumference length of 74 inches. Belt Height: 5/16 Belt Top Width: 1/2 Outside Circumference (in):74. These belts resist oil, heat, ozone, sunlight, weather, and aging. Meets ARPM / RMA IP-3-2 oil and heat-resistant standards and ARPM / RMA IP-3-3 static conductivity requirements.","A72","A72 (4L740)","AP72",null,"4L740"]
[51,"690"," A-BELTS","90022075","690 - A-75,GATES(HI-POWER)BELT","Hi-Power® II Belts / Courroies Hi-PowerMD II\nGates A75 V-belt Hi-Power II V80 Series. Belt outside circumference length of 77 inches. Belt Height: 5/16 Belt Top Width: 1/2 Outside Circumference (in):77. These belts resist oil, heat, ozone, sunlight, weather, and aging. Meets ARPM / RMA IP-3-2 oil and heat-resistant standards and ARPM / RMA IP-3-3 static conductivity requirements.","A75","A75 (4L770)","AP75",null,"4L770"]
[52,"690"," A-BELTS","90022080","690 - A-80,GATES(HI-POWER)BELT","Hi-Power® II Belts / Courroies Hi-PowerMD II\nGates A80 V-belt Hi-Power II V80 Series. Belt outside circumference length of 82 inches. Belt Height: 5/16 Belt Top Width: 1/2 Outside Circumference (in):82. These belts resist oil, heat, ozone, sunlight, weather, and aging. Meets ARPM / RMA IP-3-2 oil and heat-resistant standards and ARPM / RMA IP-3-3 static conductivity requirements.","A80","A80 (4L820)","AP80",null,"4L820"]
[53,"690"," A-BELTS","90022085","690 - A-85,GATES(HI-POWER)BELT","Hi-Power® II Belts / Courroies Hi-PowerMD II\nGates A85 V-belt Hi-Power II V80 Series. Belt outside circumference length of 87 inches. Belt Height: 5/16 Belt Top Width: 1/2 Outside Circumference (in):87. These belts resist oil, heat, ozone, sunlight, weather, and aging. Meets ARPM / RMA IP-3-2 oil and heat-resistant standards and ARPM / RMA IP-3-3 static conductivity requirements.","A85","A85 (4L870)","AP85",null,"4L870"]
[54,"690"," A-BELTS","90022105","690 - A-105,GATES(HI-POWER)BELT","Hi-Power® II Belts / Courroies Hi-PowerMD II\nGates A107 V-belt Hi-Power II V80 Series. Belt outside circumference length of 107 inches. Belt Height: 5/16 Belt Top Width: 1/2 Outside Circumference (in):107. These belts resist oil, heat, ozone, sunlight, weather, and aging. Meets ARPM / RMA IP-3-2 oil and heat-resistant standards and ARPM / RMA IP-3-3 static conductivity requirements.","A105","A105","AP105"]
[55,"690"," A-BELTS","90022112","690 - A-112,GATES(HI-POWER)BELT","Hi-Power® II Belts / Courroies Hi-PowerMD II\nGates A112 V-belt Hi-Power II V80 Series. Belt outside circumference length of 114 inches. Belt Height: 5/16 Belt Top Width: 1/2 Outside Circumference (in):114. These belts resist oil, heat, ozone, sunlight, weather, and aging. Meets ARPM / RMA IP-3-2 oil and heat-resistant standards and ARPM / RMA IP-3-3 static conductivity requirements.","A112","A112","AP112"]
[58,"690"," A-BELTS",90022018,"695 - A-18 JASON HI-POWER BELT","A-18 V-Belt, Belt outside circunference length of 20 inches.Belt Height (in): 0.31 Top Width: 1/2 Outside circumference (in): 20. These belts resist oil, heat, ozone, sunlight, weather, and aging. Conforms to ARPM standard IP-20","A18","A18 (4L200)","AP18",null,"4L200","on hand only in Timmins (Jason belt)"]
[59,"690"," A-BELTS",90022019,"695 - A-19 JASON HI-POWER BELT","A-19 V-Belt, Belt outside circunference length of 21 inches.Belt Height (in): 0.31 Top Width: 1/2 Outside circumference (in): 21. These belts resist oil, heat, ozone, sunlight, weather, and aging. Conforms to ARPM standard IP-21","A19","A19 (4L210)","AP19","94323","4L210","on hand only in Timmins (Jason belt)"]
[60,"690"," A-BELTS",90022020,"695 - A-20 JASON HI-POWER BELT","A-20 V-Belt, Belt outside circunference length of 22 inches.Belt Height (in): 0.31 Top Width: 1/2 Outside circumference (in): 22. These belts resist oil, heat, ozone, sunlight, weather, and aging. Conforms to ARPM standard IP-22","A20","A20 (4L220)","AP20","94324","4L220","on hand only in Timmins (Jason belt)"]
[61,"690"," A-BELTS",90022024,"695 - A-24 JASON HI-POWER BELT","A-24 V-Belt, Belt outside circunference length of 26 inches.Belt Height (in): 0.31 Top Width: 1/2 Outside circumference (in): 26. These belts resist oil, heat, ozone, sunlight, weather, and aging. Conforms to ARPM standard IP-23","A24","A24 (4L260)","AP24",null,"4L240","on hand only in Timmins (Jason belt)"]
[62,"690"," A-BELTS",90022079,"695 - A-79 JASON HI-POWER BELT","A-79 V-Belt, Belt outside circunference length of 81 inches.Belt Height (in): 0.31 Top Width: 1/2 Outside circumference (in): 81. These belts resist oil, heat, ozone, sunlight, weather, and aging. Conforms to ARPM standard IP-24","A79","A79 (4L810)","AP79",null,"4L810","on hand only in Timmins (Jason belt)"]
[63,"690"," A-BELTS",90022089,"695 - A-89 JASON HI-POWER BELT","A-89 V-Belt, Belt outside circunference length of 91 inches.Belt Height (in): 0.31 Top Width: 1/2 Outside circumference (in): 91. These belts resist oil, heat, ozone, sunlight, weather, and aging. Conforms to ARPM standard IP-25","A89","A89 (4L910)","AP89",null,"4L910","on hand only in Timmins (Jason belt)"]
[64,"690"," A-BELTS",90022095,"695 - A-95 JASON HI-POWER BELT","A-95 V-Belt, Belt outside circunference length of 97 inches.Belt Height (in): 0.31 Top Width: 1/2 Outside circumference (in): 97. These belts resist oil, heat, ozone, sunlight, weather, and aging. Conforms to ARPM standard IP-26","A95","A95 (4L970)","AP95",null,"4L970","on hand only in Timmins (Jason belt)"]

{"sheet":"690 sources","index":1,"n_rows":5,"n_cols":3,"rows_kept":5,"cut":false,"hidden":false,"merged":[]}
["Manufacturer","Source 1 of SKU search","Source 2 of SKU search"]
["Gates","https://www.vbelts4less.com/standard-a-series-v-belt "]
["Jason","https://www.jasonindustrial.com/wp-content/uploads/HVAC-R-Product-Guide.pdf "]
["Dayco","https://www.vbelts4less.com/standard-a-series-v-belt "]
["Mars","https://marsdelivers.com/images/98605_catalog/AM-21.pdf "]

{"sheet":"description","index":2,"n_rows":185,"n_cols":7,"rows_kept":185,"cut":false,"hidden":false,"merged":[]}
["SKU (50 max) *","Short Description (255 max) *","Long Description (255 max)"]
["941+A15:A18600","MARS BELT SIZER","Measure FHP Belts upto 107\" to determine equivalent Truflex belts numbers",null,"MARS"]
[94419,"B-23,MARS V-BELT","B23 V-Belt, Consumer Brand. 21/32” (5/8”) Wide \nx 26” Length OC (Metric 16mm W x 660mm La). \nStatic, Heat, and Oil resistant. High quality for low cost!",null,"B-23",{"$f":"SUBSTITUTE(E3,\"-\",\"\")","v":"B23"}]
[408603,"V-BELT DRESSING 11oz. AEROSOL(6/BX)","Eliminates squeaks and prolongs belt life. For\n use on all types of belts, such as serpentine,\n flat and v-type belts. Prevents slippage and \nglazing. Removes oil, grease and glaze",null,"V-BELT",{"$f":"SUBSTITUTE(E4,\"-\",\"\")","v":"VBELT"}]
[74217,"4L-780,GATES(TRUFLEX)BELT","4L780 Gates Truflex light duty v-belt 78 inches long x 1/2 top width.",null,"4L-780","4L780"]
["BX42","BX42 BELT 42\" COGGED","For industrial drives. Rubber Impregnated Fabric.\n Datum Length:43.8\". Outer Length:45\". Section: BX.\n Series: BX42. Thickness:13/32\". Type: Cogged V-Belt.\n Width: 21/32\", Product Weight:0.43",null,"BX42","BX42"]
["BX47","BX47 BELT 47\" COGGED","21/32\" Top Width X 50\" Outside Measurement.\n Manufacturer Part#: BX47. TECHNICAL \nSPECIFICATIONS: Series: BX47 Cogged V-Belt.\n Widths: 21/32 Inch, (17mm). Outside Length:\n 50 Inch, Inside Length: 47 Inch, Material: Neoprene",null,"BX47","BX47"]
["BX48","BX48 BELT 48\" COGGED","Item Cogged V-Belt. V-Belt Type Cogged V-Belt.\n V-Belt Section BX . Industry Number: BX48. \nNumber of Ribs 1. Outside Length 51\" .Top Width 21/32\" Thickness 3/32\" Material Fabric Cover, Rubber Body, Polyester Cords Construction Raw Edge, Cogged Temp. Range -22 Degrees to 194 Degrees F Resists Heat, Oil",null,"BX48","BX48"]
["ALINK5","A LINK BELT 5FT LENGTH","",null,"A","A"]
[84001190,"3L-190,GATES(TRUFLEX)BELT","Truflex® V-Belts / Courroies-V TruflexMD Gates Truflex light duty v-belt 3L190 8400-1190. Truflex® belts feature superior length stability for minimal take-up. 3L190 Gates Truflex light duty v-belt 19 inches long x 3/8 top width. Gates product ID 84001190 Belt Height:  7/32 Belt Top Width:  3/8 Outside Circumference (in): 19",null,"3L-190","3L190"]
[84001210,"3L-210,GATES(TRUFLEX)BELT","Truflex® V-Belts / Courroies-V TruflexMD Gates Truflex light duty v-belt 3L210 8400-1210 3L210 Gates Truflex light duty v-belt 21 inches long x 3/8 top width.  Belt Height:  7/32Belt Top Width:  3/8 Outside Circumference (in): 21",null,"3L-210","3L210"]
[84002200,"4L-200,GATES(TRUFLEX)BELT","Truflex® V-Belts / Courroies-V TruflexMD Gates Truflex light\n duty v-belt 4L200 8400-2200. 4L200 Gates Truflex light duty v-belt 20 inches long x 1/2 top width. Belt Height:  5/16 Belt Top Width:  1/2Outside Circumference (in):  20",null,"4L-200","4L200"]
[84002210,"4L-210,GATES(TRUFLEX)BELT","Truflex® V-Belts / Courroies-V TruflexMD Gates Truflex light duty v-belt 4L210 8400-2210 4L210 Gates Truflex light duty v-belt 21 inches long x 1/2 top width. Belt Height:  5/16 Belt Top Width:  1/2 Outside Circumference (in): 21",null,"4L-210","4L210"]
[84002220,"4L-220,GATES(TRUFLEX)BELT","Truflex® V-Belts / Courroies-V TruflexMD Gates Truflex light duty v-belt 4L220 8400-2220. \n4L220 Gates Truflex light duty v-belt 22 inches long x 1/2 top width. Belt Height:  5/16 Belt Top Width:  1/2 Outside Circumference (in): 22\nMPN: 4L220",null,"4L-220","4L220"]
[84002240,"4L-240,GATES(TRUFLEX)BELT","Truflex® V-Belts / Courroies-V TruflexMD Gates Truflex light duty v-belt 4L240 8400-2240\n4L240 Gates Truflex light duty v-belt 24 inches long x 1/2 top width. Belt Height:  5/16 Belt Top Width:  1/2 Outside Circumference (in): 24 MPN:  4L240",null,"4L-240","4L240"]
[84002250,"4L-250,GATES(TRUFLEX)BELT","Truflex® V-Belts / Courroies-V TruflexMD Gates Truflex light duty v-belt 4L250 8400-2250. 4L250 Gates Truflex light duty v-belt 25 inches long x 1/2 top width. Belt Height:  5/16 Belt Top Width:  1/2 Outside Circumference (in): 25 MPN:  4L250\n",null,"4L-250","4L250"]
[84002280,"4L-280,GATES(TRUFLEX)BELT","Truflex® V-Belts / Courroies-V TruflexMD Gates Truflex light duty v-belt 4L280 8400-2280. 4L280 Gates Truflex light duty v-belt 28 inches long x 1/2 top width. Belt Height:  5/16 Belt Top Width:  1/2 Outside Circumference (in): 28 MPN:  4L280",null,"4L-280","4L280"]
[84002290,"4L-290,GATES(TRUFLEX)BELT","Truflex® V-Belts / Courroies-V TruflexMD Gates Truflex light duty v-belt 4L290 8400-2290. \n4L290 Gates Truflex light duty v-belt 29 inches long x 1/2 top width.\nBelt Height:  5/16 Belt Top Width:  1/2 Outside Circumference (in):  29\nMPN:  4L290",null,"4L-290","4L290"]
[84002340,"4L-340,GATES(TRUFLEX)BELT","Truflex® V-Belts / Courroies-V TruflexMD.Gates Truflex light duty v-belt 4L340 8400-2340.\n4L340 Gates Truflex light duty v-belt 34 inches long x 1/2 top width. \nBelt Height:  5/16 Belt Top Width:  1/2 Outside Circumference (in):  34\nMPN:  4L340",null,"4L-340","4L340"]
[90032064,"B-64,GATES(HI-POWER)BELT","Hi-Power® II Belts / Courroies Hi-PowerMD II\nGates B64 Hi-Power II V80 Series Vbelt. these belts resist oil and heat, ozone, sunlight, weather, and aging.Belt Height:  13/32 Belt Top Width:  21/32 Outside Circumference (in):  67\nMPN:  B64 .Meets ARPM / RMA IP-3-2 oil and heat-resistant standards.\nMeets ARPM / RMA IP-3-3 static conductivity requirements.",null,"B-64","B64"]
[90032067,"B-67,GATES(HI-POWER)BELT","Gates B64 Hi-Power II V-Belt - 9003-2064.Belt Height:  13/32\nBelt Top Width:  21/32.Outside Circumference (in):  67\nMPN:  B64 these belts resist oil and heat, ozone, sunlight, weather, and aging.\nMeets ARPM / RMA IP-3-2 oil and heat-resistant standards.Meets ARPM / RMA IP-3-3 static conductivity requirements.",null,"B-67","B67"]
[90032088,"B-88,GATES(HI-POWER)BELT","Gates B88 Hi-Power II V80 Series Vbelt Belt Height:  13/32 Belt Top Width:  21/32 Outside Circumference (in):  91 Meets ARPM / RMA IP-3-2 oil and heat-resistant standards and ARPM / RMA IP-3-3 static conductivity requirements.",null,"B-88","B88"]
[90032034,"B-34,GATES(HI-POWER)BELT","Hi-Power® II Belts / Courroies Hi-PowerMD II Gates B34 Hi-Power II V-Belt - 9003-2034\nBelt Height:  13/32 Belt Top Width:  21/32 Outside Circumference (in):  37\nMeets ARPM / RMA IP-3-2 oil and heat-resistant standards and ARPM / RMA IP-3-3 static conductivity requirements",null,"B-34","B34"]
[90032035,"B-35,GATES(HI-POWER)BELT","Hi-Power® II Belts / Courroies Hi-PowerMD II Gates B35 Hi-Power II V-Belt - 9003-2035\nBelt Height:  13/32 Belt Top Width:  21/32 Outside Circumference (in):  38. Meets ARPM / RMA IP-3-2 oil and heat-resistant standards and ARPM / RMA IP-3-3 static conductivity requirements.",null,"B-35","B35"]
[90032038,"B-38,GATES(HI-POWER)BELT","Hi-Power® II Belts / Courroies Hi-PowerMD II Gates B38 Hi-Power II V-Belt - 9003-2038\nBelt Height:  13/32 Belt Top Width:  21/32 Outside Circumference (in):  41. Meets ARPM / RMA IP-3-2 oil and heat-resistant standards and ARPM / RMA IP-3-3 static conductivity requirements.",null,"B-38","B38"]
[90032040,"B-40,GATES(HI-POWER)BELT","Hi-Power® II Belts / Courroies Hi-PowerMD II Gates B40 Hi-Power II V-Belt - 9003-2040\nBelt Height:  13/32 Belt Top Width:  21/32 Outside Circumference (in):  43. These belts resist oil and heat, ozone, sunlight, weather, and aging. Meets ARPM / RMA IP-3-2 oil and heat-resistant standards and ARPM / RMA IP-3-3 static conductivity requirements.",null,"B-40","B40"]
[90032042,"B-42,GATES(HI-POWER)BELT","Hi-Power® II Belts / Courroies Hi-PowerMD II Gates B42 Hi-Power II V-Belt - 9003-2042\nBelt Height:  13/32 Belt Top Width:  21/32 Outside Circumference (in):  45. These belts resist oil and heat, ozone, sunlight, weather, and aging. Meets ARPM / RMA IP-3-2 oil and heat-resistant standards and ARPM / RMA IP-3-3 static conductivity requirements.",null,"B-42","B42"]
[90032044,"B-44,GATES(HI-POWER)BELT","Hi-Power® II Belts / Courroies Hi-PowerMD II Gates B44 Hi-Power II V-Belt - 9003-2044\nBelt Height:  13/32 Belt Top Width:  21/32 Outside Circumference (in):  47.These belts resist oil and heat, ozone, sunlight, weather, and aging. ",null,"B-44","B44"]
[90032046,"B-46,GATES(HI-POWER)BELT","Hi-Power® II Belts / Courroies Hi-PowerMD II\nGates B46 Hi-Power II V-Belt Belt Height: 13/32 Belt Top Width: 21/32 Outside Circumference (in): 49 These belts resist oil, heat, ozone, sunlight, weather, and aging. Meets ARPM / RMA IP-3-2 oil and heat-resistant standards and ARPM / RMA IP-3-3 static conductivity requirements.",null,"B-46","B46"]
[90032048,"B-48,GATES(HI-POWER)BELT","Hi-Power® II Belts / Courroies Hi-PowerMD II\nGates B48 Hi-Power II V-Belt Belt Height: 13/32 Belt Top Width: 21/32 Outside Circumference (in): 51 These belts resist oil, heat, ozone,\n sunlight, weather, and aging. Meets ARPM / RMA IP-3-2 oil and heat-resistant standards and ARPM / RMA IP-3-3 static conductivity requirements.",null,"B-48","B48"]
[90032050,"B-50,GATES(HI-POWER)BELT","Hi-Power® II Belts / Courroies Hi-PowerMD II\nGates B50 Hi-Power II V-Belt Belt Height: 13/32 Belt Top Width: 21/32 Outside Circumference (in): 53 These belts resist oil, heat, ozone, sunlight, weather, and aging. Meets ARPM / RMA IP-3-2 oil and heat-resistant standards and ARPM / RMA IP-3-3 static conductivity requirements.\n",null,"B-50","B50"]
[90032057,"B-57,GATES(HI-POWER)BELT","Hi-Power® II Belts / Courroies Hi-PowerMD II\nGates B57 Hi-Power II V-Belt Belt Height: 13/32 Belt Top Width: 21/32 Outside Circumference (in): 57 These belts resist oil, heat, ozone,\nsunlight, weather, and aging. Meets ARPM / RMA IP-3-2 oil and heat-resistant standards and ARPM / RMA IP-3-3 static conductivity requirements.\n",null,"B-57","B57"]
[90022026,"A-26,GATES(HI-POWER)BELT","Hi-Power® II Belts / Courroies Hi-PowerMD II\nGates A26 Hi-Power II V80  Series. Belt outside circumference length of 28 inches.  Belt Height: 5/16 Belt Top Width: 1/2 Outside Circumference (in): 28 These belts resist oil, heat, ozone,\nsunlight, weather, and aging. Meets ARPM / RMA IP-3-2 oil and heat-resistant standards and ARPM / RMA IP-3-3 static conductivity requirements.\n",null,"A-26","A26","A26"]
[90022027,"A-27,GATES(HI-POWER)BELT","Hi-Power® II Belts / Courroies Hi-PowerMD II\nGates A27 Hi-Power II V80  Series. Belt outside circumference length of 29 inches.  Belt Height: 5/16 Belt Top Width: 1/2 Outside Circumference (in): 29 These belts resist oil, heat, ozone,\nsunlight, weather, and aging. Meets ARPM / RMA IP-3-2 oil and heat-resistant standards and ARPM / RMA IP-3-3 static conductivity requirements.\n",null,"A-27","A27","A27"]
[90022030,"A-30,GATES(HI-POWER)BELT","Hi-Power® II Belts / Courroies Hi-PowerMD II\nGates A30 V-belt Hi-Power II V80 Series. Belt outside circumference length of 32 inches. Belt Height: 5/16 Belt Top Width: 1/2 Outside Circumference (in): 32 These belts resist oil, heat, ozone, sunlight, weather, and aging. Meets ARPM / RMA IP-3-2 oil and heat-resistant standards and ARPM / RMA IP-3-3 static conductivity requirements.\n",null,"A-30","A30","A30"]
[90022031,"A-31, GATES(HI-POWER)BELT","Hi-Power® II Belts / Courroies Hi-PowerMD II\nGates A31 V-belt Hi-Power II V80 Series. Belt outside circumference length of 33 inches. Belt Height: 5/16 Belt Top Width: 1/2 Outside Circumference (in): 33 These belts resist oil, heat, ozone, sunlight, weather, and aging. Meets ARPM / RMA IP-3-2 oil and heat-resistant standards and ARPM / RMA IP-3-3 static conductivity requirements.\n",null,"A-31","A31","A31"]
[90022032,"A-32,GATES(HI-POWER)BELT","Hi-Power® II Belts / Courroies Hi-PowerMD II\nGates A32 V-belt Hi-Power II V80 Series. Belt outside circumference length of 34 inches. Belt Height: 5/16 Belt Top Width: 1/2 Outside Circumference (in): 34. These belts resist oil, heat, ozone, sunlight, weather, and aging. Meets ARPM / RMA IP-3-2 oil and heat-resistant standards and ARPM / RMA IP-3-3 static conductivity requirements.\n",null,"A-32","A32","A32"]
[90022033,"A-33,GATES(HI-POWER)BELT","Hi-Power® II Belts / Courroies Hi-PowerMD II\nGates A33 V-belt Hi-Power II V80 Series. Belt outside circumference length of 35 inches. Belt Height: 5/16 Belt Top Width: 1/2 Outside Circumference (in): 35. These belts resist oil, heat, ozone, sunlight, weather, and aging. Meets ARPM / RMA IP-3-2 oil and heat-resistant standards and ARPM / RMA IP-3-3 static conductivity requirements.\n",null,"A-33","A33","A33"]
[90022034,"A-34,GATES(HI-POWER)BELT","Hi-Power® II Belts / Courroies Hi-PowerMD II\nGates A34 V-belt Hi-Power II V80 Series. Belt outside circumference length of 36 inches. Belt Height: 5/16 Belt Top Width: 1/2\nOutside Circumference (in): 36. These belts resist oil, heat, ozone,\nsunlight, weather, and aging. Meets ARPM / RMA IP-3-2 oil and \nheat-resistant standards and ARPM / RMA IP-3-3 static conductivity requirements.\n",null,"A-34","A34","A34"]
[90022035,"A-35,GATES(HI-POWER)BELT","Hi-Power® II Belts / Courroies Hi-PowerMD II\nGates A35 V-belt Hi-Power II V80 Series. Belt outside circumference length of 37 inches. Belt Height: 5/16 Belt Top Width: 1/2 Outside Circumference (in): 37. These belts resist oil, heat, ozone, sunlight, weather, and aging. Meets ARPM / RMA IP-3-2 oil and heat-resistant standards and ARPM / RMA IP-3-3 static conductivity requirements.\n",null,"A-35","A35","A35"]
[90022036,"A-36,GATES(HI-POWER)BELT","Hi-Power® II Belts / Courroies Hi-PowerMD II\nGates A36 V-belt Hi-Power II V80 Series. Belt outside circumference length of 38 inches. Belt Height: 5/16 Belt Top Width: 1/2 Outside Circumference (in): 38. These belts resist oil, heat, ozone, sunlight, weather, and aging. Meets ARPM / RMA IP-3-2 oil and heat-resistant standards and ARPM / RMA IP-3-3 static conductivity requirements.\n",null,"A-36","A36","A36"]
[90022037,"A-37,GATES(HI-POWER)BELT","Hi-Power® II Belts / Courroies Hi-PowerMD II\nGates A37 V-belt Hi-Power II V80 Series. Belt outside circumference length of 39 inches. Belt Height: 5/16 Belt Top Width: 1/2 Outside Circumference (in): 39. These belts resist oil, heat, ozone, sunlight, weather, and aging. Meets ARPM / RMA IP-3-2 oil and heat-resistant standards and ARPM / RMA IP-3-3 static conductivity requirements.\n",null,"A-37","A37","A37"]
[90022038,"A-38,GATES(HI-POWER)BELT","Hi-Power® II Belts / Courroies Hi-PowerMD II\nGates A38 V-belt Hi-Power II V80 Series. Belt outside circumference length of 40 inches. Belt Height: 5/16 Belt Top Width: 1/2 Outside Circumference (in): 40. These belts resist oil, heat, ozone, sunlight, weather, and aging. Meets ARPM / RMA IP-3-2 oil and  heat-resistant standards and ARPM / RMA IP-3-3 static conductivity requirements.\n",null,"A-38","A38","A38"]
[90022039,"A-39,GATES(HI-POWER)BELT","Hi-Power® II Belts / Courroies Hi-PowerMD II\nGates A39 V-belt Hi-Power II V80 Series. Belt outside circumference length of 41 inches. Belt Height: 5/16 Belt Top Width: 1/2 Outside Circumference (in): 41. These belts resist oil, heat, ozone,sunlight, weather, and aging. Meets ARPM / RMA IP-3-2 oil and heat-resistant standards and ARPM / RMA IP-3-3 static conductivity requirements.\n",null,"A-39","A39","A39"]
[90022040,"A-40,GATES(HI-POWER)BELT","Hi-Power® II Belts / Courroies Hi-PowerMD II\nGates A40 V-belt Hi-Power II V80 Series. Belt outside circumference length of 42 inches. Belt Height: 5/16 Belt Top Width: 1/2 Outside Circumference (in): 42. These belts resist oil, heat, ozone, sunlight, weather, and aging. Meets ARPM / RMA IP-3-2 oil and \nheat-resistant standards and ARPM / RMA IP-3-3 static conductivity requirements.\n",null,"A-40","A40","A40"]
[90022042,"A-42,GATES(HI-POWER)BELT","Hi-Power® II Belts / Courroies Hi-PowerMD II\nGates A42 V-belt Hi-Power II V80 Series. Belt outside circumference length of 44 inches. Belt Height: 5/16 Belt Top Width: 1/2 Outside Circumference (in): 44. These belts resist oil, heat, ozone, sunlight, weather, and aging. Meets ARPM / RMA IP-3-2 oil and heat-resistant standards and ARPM / RMA IP-3-3 static conductivity requirements.\n",null,"A-42","A42","A42"]
[90022043,"A-43,GATES(HI-POWER)BELT","Hi-Power® II Belts / Courroies Hi-PowerMD II\nGates A43 V-belt Hi-Power II V80 Series. Belt outside circumference length of 45 inches. Belt Height: 5/16 Belt Top Width: 1/2 Outside Circumference (in): 45. These belts resist oil, heat, ozone, sunlight, weather, and aging. Meets ARPM / RMA IP-3-2 oil and heat-resistant standards and ARPM / RMA IP-3-3 static conductivity requirements.\n",null,"A-43","A43","A43"]
[90022044,"A-44,GATES(HI-POWER)BELT","Hi-Power® II Belts / Courroies Hi-PowerMD II\nGates A44 V-belt Hi-Power II V80 Series. Belt outside circumference length of 46 inches. Belt Height: 5/16 Belt Top Width: 1/2 Outside Circumference (in): 46. These belts resist oil, heat, ozone, sunlight, weather, and aging. Meets ARPM / RMA IP-3-2 oil and heat-resistant standards and ARPM / RMA IP-3-3 static conductivity requirements.\n",null,"A-44","A44","A44"]
[90022045,"A-45,GATES(HI-POWER)BELT","Hi-Power® II Belts / Courroies Hi-PowerMD II\nGates A45 V-belt Hi-Power II V80 Series. Belt outside circumference length of 47 inches. Belt Height: 5/16 Belt Top Width: 1/2 Outside Circumference (in): 47. These belts resist oil, heat, ozone, sunlight, weather, and aging. Meets ARPM / RMA IP-3-2 oil and  heat-resistant standards and ARPM / RMA IP-3-3 static conductivity requirements.\n",null,"A-45","A45","A45"]
[90022046,"A-46,GATES(HI-POWER)BELT","Hi-Power® II Belts / Courroies Hi-PowerMD II\nGates A46 V-belt Hi-Power II V80 Series. Belt outside circumference length of 48 inches. Belt Height: 5/16 Belt Top Width: 1/2 Outside Circumference (in): 48. These belts resist oil, heat, ozone, sunlight, weather, and aging. Meets ARPM / RMA IP-3-2 oil and heat-resistant standards and ARPM / RMA IP-3-3 static conductivity requirements.\n",null,"A-46","A46","A46"]
[90022047,"A-47,GATES(HI-POWER)BELT","Hi-Power® II Belts / Courroies Hi-PowerMD II\nGates A47 V-belt Hi-Power II V80 Series. Belt outside circumference length of 49 inches. Belt Height: 5/16 Belt Top Width: 1/2 Outside Circumference (in): 49. These belts resist oil, heat, ozone, sunlight, weather, and aging. Meets ARPM / RMA IP-3-2 oil and heat-resistant standards and ARPM / RMA IP-3-3 static conductivity requirements.\n",null,"A-47","A47","A47"]
[90022048,"A-48,GATES(HI-POWER)BELT","Hi-Power® II Belts / Courroies Hi-PowerMD IIHi-Power® II Belts / Courroies Hi-PowerMD II\nGates A48 V-belt Hi-Power II V80 Series. Belt outside circumference length of 50 inches. Belt Height: 5/16 Belt Top Width: 1/2 Outside Circumference (in): 50. These belts resist oil, heat, ozone, sunlight, weather, and aging. Meets ARPM / RMA IP-3-2 oil and heat-resistant standards and ARPM / RMA IP-3-3 static conductivity requirements.\n",null,"A-48","A48","A48"]
[90022049,"A-49 GATES(HI-POWER) BELT","Hi-Power® II Belts / Courroies Hi-PowerMD II\nGates A49 V-belt Hi-Power II V80 Series. Belt outside circumference length of 51 inches. Belt Height: 5/16 Belt Top Width: 1/2\nOutside Circumference (in): 51. These belts resist oil, heat, ozone,\nsunlight, weather, and aging. Meets ARPM / RMA IP-3-2 oil and \nheat-resistant standards and ARPM / RMA IP-3-3 static conductivity requirements.\n",null,"A-49","A49","A49"]
[90022050,"A-50,GATES(HI-POWER)BELT","Hi-Power® II Belts / Courroies Hi-PowerMD II\nGates A50 V-belt Hi-Power II V80 Series. Belt outside circumference length of 52 inches. Belt Height: 5/16 Belt Top Width: 1/2 Outside Circumference (in): 52. These belts resist oil, heat, ozone, sunlight, weather, and aging. Meets ARPM / RMA IP-3-2 oil and heat-resistant standards and ARPM / RMA IP-3-3 static conductivity requirements.\n",null,"A-50","A50","A50"]
[90022051,"A-51,GATES(HI-POWER)BELT","Hi-Power® II Belts / Courroies Hi-PowerMD II\nGates A51 V-belt Hi-Power II V80 Series. Belt outside circumference length of 53 inches. Belt Height: 5/16 Belt Top Width: 1/2 Outside Circumference (in): 53. These belts resist oil, heat, ozone, sunlight, weather, and aging. Meets ARPM / RMA IP-3-2 oil and heat-resistant standards and ARPM / RMA IP-3-3 static conductivity requirements.\n",null,"A-51","A51","A51"]
[90022052,"A-52,GATES(HI-POWER)BELT","Hi-Power® II Belts / Courroies Hi-PowerMD II\nGates A52 V-belt Hi-Power II V80 Series. Belt outside circumference length of 54 inches. Belt Height: 5/16 Belt Top Width: 1/2 Outside Circumference (in): 54. These belts resist oil, heat, ozone, sunlight, weather, and aging. Meets ARPM / RMA IP-3-2 oil and heat-resistant standards and ARPM / RMA IP-3-3 static conductivity requirements.\n",null,"A-52","A52","A52"]
[90022053,"A-53,GATES(HI-POWER)BELT","Hi-Power® II Belts / Courroies Hi-PowerMD II\nGates A53 V-belt Hi-Power II V80 Series. Belt outside circumference length of 55 inches. Belt Height: 5/16 Belt Top Width: 1/2 Outside Circumference (in): 55. These belts resist oil, heat, ozone, sunlight, weather, and aging. Meets ARPM / RMA IP-3-2 oil and heat-resistant standards and ARPM / RMA IP-3-3 static conductivity requirements.\n",null,"A-53","A53","A53"]
[90022054,"A54 GATES HI POWER BELT","Hi-Power® II Belts / Courroies Hi-PowerMD II\nGates A54 V-belt Hi-Power II V80 Series. Belt outside circumference length of 56 inches. Belt Height: 5/16 Belt Top Width: 1/2 Outside Circumference (in): 56. These belts resist oil, heat, ozone, sunlight, weather, and aging. Meets ARPM / RMA IP-3-2 oil and heat-resistant standards and ARPM / RMA IP-3-3 static conductivity requirements.\n",null,"A54","A54","A54"]
[90022055,"A-55,GATES(HI-POWER)BELT","Hi-Power® II Belts / Courroies Hi-PowerMD II\nGates A55 V-belt Hi-Power II V80 Series. Belt outside circumference length of 57 inches. Belt Height: 5/16 Belt Top Width: 1/2 Outside Circumference (in): 57. These belts resist oil, heat, ozone, sunlight, weather, and aging. Meets ARPM / RMA IP-3-2 oil and heat-resistant standards and ARPM / RMA IP-3-3 static conductivity requirements.\n",null,"A-55","A55","A55"]
[90022056,"A-56,GATES(HI-POWER)BELT","Hi-Power® II Belts / Courroies Hi-PowerMD II\nGates A56 V-belt Hi-Power II V80 Series. Belt outside circumference length of 58 inches. Belt Height: 5/16 Belt Top Width: 1/2 Outside Circumference (in): 58. These belts resist oil, heat, ozone, sunlight, weather, and aging. Meets ARPM / RMA IP-3-2 oil and heat-resistant standards and ARPM / RMA IP-3-3 static conductivity requirements.\n",null,"A-56","A56","A56"]
[90022062,"A-62,GATES(HI-POWER)BELT","Hi-Power® II Belts / Courroies Hi-PowerMD II\nGates A62 V-belt Hi-Power II V80 Series. Belt outside circumference length of 64 inches. Belt Height: 5/16 Belt Top Width: 1/2 Outside Circumference (in): 64. These belts resist oil, heat, ozone, sunlight, weather, and aging. Meets ARPM / RMA IP-3-2 oil and heat-resistant standards and ARPM / RMA IP-3-3 static conductivity requirements.\n",null,"A-62","A62","A62"]
[84002190,"4L190 GATES (TRUFLEX)BELT","Truflex® V-Belts / Courroies-V TruflexMD Gates Truflex light duty v-belt 4L190 8400-2190.  4L190 Gates Truflex light duty v-belt 19 inches long x 1/2 top width. Belt Height:  5/16 Belt Top Width:  1/2 Outside Circumference (in):  19 MPN:  4L190",null,"4L190","4L190","A29"]
[84002360,"4L-360,GATES(TRUFLEX)BELT","Truflex® V-Belts / Courroies-V TruflexMD Gates Truflex light duty v-belt 4L360 8400-2360.  4L360 Gates Truflex light duty v-belt 36 inches long x 1/2 top width. Belt Height:  5/16 Belt Top Width:  1/2 Outside Circumference (in): 36 MPN:  4L360",null,"4L-360","4L360","A41"]
[84002430,"4L-430,GATES(TRUFLEX)BELT","Truflex® V-Belts / Courroies-V TruflexMD Gates Truflex light duty v-belt 4L430 8400-2430. \n4L430 Gates Truflex light duty v-belt 43 inches long x 1/2 top width. Belt Height:  5/16 Belt Top Width:  1/2 Outside Circumference (in): 43\nMPN:  4L430",null,"4L-430","4L430","A58"]
[90022029,"A-29,GATES(HI-POWER)BELT","Hi-Power® II Belts / Courroies Hi-PowerMD II\nGates A29 V-belt Hi-Power II V80 Series. Belt outside circumference length of 31 inches. Belt Height: 5/16 Belt Top Width: 1/2 Outside Circumference (in): 31. These belts resist oil, heat, ozone, sunlight, weather, and aging. Meets ARPM / RMA IP-3-2 oil and heat-resistant standards and ARPM / RMA IP-3-3 static conductivity requirements.\n",null,"A-29","A29","A23"]
[90032031,"B-31,GATES(HI-POWER)BELT","Hi-Power® II Belts / Courroies Hi-PowerMD II\nGates B31 Hi-Power II V-Belt - 9003-2031. Belt Height: 13/32 Belt Top Width: 21/32\nOutside Circumference (in): 34. These belts resist oil, heat, ozone, sunlight, weather, and aging. Meets ARPM / RMA IP-3-2 oil and heat-resistant standards and ARPM / RMA IP-3-3 static conductivity requirements.\n",null,"B-31","B31","A25"]
[90032032,"B-32,GATES(HI-POWER)BELT","Hi-Power® II Belts / Courroies Hi-PowerMD II\nGates B32 Hi-Power II V-Belt - 9003-2032. Belt Height: 13/32 Belt Top Width: 21/32 \nOutside Circumference (in): 35 These belts resist oil, heat, ozone, sunlight, weather, and aging. Meets ARPM / RMA IP-3-2 oil and heat-resistant standards and ARPM / RMA IP-3-3 static conductivity requirements.\n",null,"B-32","B32","A28"]
[90032041,"B-41,GATES(HI-POWER)BELT","Hi-Power® II Belts / Courroies Hi-PowerMD II\nGates B41 V-belt Hi-Power II V-Belt - 9003-2041. Belt Height: 13/32 Belt Top Width: 21/32\nOutside Circumference (in): 44. These belts resist oil, heat, ozone, sunlight, weather, and aging. Meets ARPM / RMA IP-3-2 oil and heat-resistant standards and ARPM / RMA IP-3-3 static conductivity requirements.\n",null,"B-41",{"$f":"SUBSTITUTE(E68,\"-\",\"\")","v":"B41"},"A57"]
[90032047,"B-47,GATES(HI-POWER)BELT","Hi-Power® II Belts / Courroies Hi-PowerMD II\nGates B47 V-belt Hi-Power II V-Belt - 9003-2047. Belt Height: 13/32 Belt Top Width: 21/32 Outside Circumference (in): 50. These belts resist oil, heat, ozone, sunlight, weather, and aging. Meets ARPM / RMA IP-3-2 oil and \nheat-resistant standards and ARPM / RMA IP-3-3 static conductivity requirements.\n",null,"B-47","B47","A59"]
[90032061,"B-61,GATES(HI-POWER)BELT","Hi-Power® II Belts / Courroies Hi-PowerMD II\nGates B61 V-belt Hi-Power II V-Belt - 9003-2061. Belt Height: 13/32 Belt Top Width: 21/32 Outside Circumference (in): 64. These belts resist oil, heat, ozone, sunlight, weather, and aging. Meets ARPM / RMA IP-3-2 oil and \nheat-resistant standards and ARPM / RMA IP-3-3 static conductivity requirements.\n",null,"B-61","B61","A60"]
[90032070,"B-70,GATES(HI-POWER)BELT","Hi-Power® II Belts / Courroies Hi-PowerMD II\nGates B70 V-belt Hi-Power II V-Belt - 9003-2070. Belt Height: 13/32 Belt Top Width: 21/32\nOutside Circumference (in): 73. These belts resist oil, heat, ozone, sunlight, weather, and aging. Meets ARPM / RMA IP-3-2 oil and heat-resistant standards and ARPM / RMA IP-3-3 static conductivity requirements.\n",null,"B-70","B70","A61"]
[90032118,"B-118,GATES(HI-POWER)BELT","Hi-Power® II Belts / Courroies Hi-PowerMD II\nGates B118 V-belt Hi-Power II V-Belt - 9003-2118. Belt Height: 13/32 Belt Top Width: 21/32 Outside Circumference (in): 121. These belts resist oil, heat, ozone, sunlight, weather, and aging. Meets ARPM / RMA IP-3-2 oil and heat-resistant standards and ARPM / RMA IP-3-3 static conductivity requirements.\n",null,"B-118","B118","A63"]
[84002370,"4L-370,GATES(TRUFLEX)BELT","Truflex® V-Belts / Courroies-V TruflexMD Gates Truflex light duty v-belt 4L370 8400-2370.\n4L370 Gates Truflex light duty v-belt 37 inches long x 1/2 top width.Belt Height:  5/16 Belt Top Width:  1/2 Outside Circumference (in): 37 MPN:  4L370",null,"4L-370","4L370","A65"]
[90032058,"B-58,GATES(HI-POWER)BELT","Hi-Power® II Belts / Courroies Hi-PowerMD II\nGates B58 V-belt Hi-Power II V-Belt - 9003-2058. Belt Height: 13/32 Belt Top Width: 21/32 Outside Circumference (in): 61. These belts resist oil, heat, ozone, sunlight, weather, and aging. Meets ARPM / RMA IP-3-2 oil and heat-resistant standards and ARPM / RMA IP-3-3 static conductivity requirements.\n",null,"B-58","B58","A66"]
[90032062,"B-62,GATES(HI-POWER)BELT","Hi-Power® II Belts / Courroies Hi-PowerMD II\nGates B62 V-belt Hi-Power II V-Belt - 9003-2062. Belt Height: 13/32 Belt Top Width: 21/32\nOutside Circumference (in): 65. These belts resist oil, heat, ozone, sunlight, weather, and aging. Meets ARPM / RMA IP-3-2 oil and heat-resistant standards and ARPM / RMA IP-3-3 static conductivity requirements.\n",null,"B-62","B62","A67"]
[90032063,"B-63,GATES(HI-POWER)BELT","Hi-Power® II Belts / Courroies Hi-PowerMD II\nGates B63 V-belt Hi-Power II V-Belt - 9003-2063. Belt Height: 13/32 Belt Top Width: 21/32\nOutside Circumference (in): 66. These belts resist oil, heat, ozone, sunlight, weather, and aging. Meets ARPM / RMA IP-3-2 oil and heat-resistant standards and ARPM / RMA IP-3-3 static conductivity requirements.\n",null,"B-63","B63","A68"]
[90032073,"B-73,GATES(HI-POWER)BELT GATES V-BELT","Hi-Power® II Belts / Courroies Hi-PowerMD II\nGates B73 V-belt Hi-Power II V-Belt - 9003-2073. Belt Height: 13/32 Belt Top Width: 21/32\nOutside Circumference (in): 76. These belts resist oil, heat, ozone, sunlight, weather, and aging. Meets ARPM / RMA IP-3-2 oil and \nheat-resistant standards and ARPM / RMA IP-3-3 static conductivity requirements.\n",null,"B-73","B73","A69"]
[84002380,"4L-380,GATES(TRUFLEX)BELT","4L380 Gates Truflex light duty v-belt 38 inches long x 1/2 top width. Belt Height: 5/16 Belt Top Width: 1/2 Outside Circumference (in): 38. These belts resist oil, heat, ozone, sunlight, weather, and aging. Meets ARPM / RMA IP-3-2 oil and \nheat-resistant standards and ARPM / RMA IP-3-3 static conductivity requirements.\n",null,"4L-380","4L380","A70"]
[90022041,"A-41,GATES(HI-POWER)BELT","Hi-Power® II Belts / Courroies Hi-PowerMD II\nGates A41 V-belt Hi-Power II V80 Series. Belt Height: 5/16 Belt Top Width: 1/2 Outside Circumference (in): 43. These belts resist oil, heat, ozone, sunlight, weather, and aging. Meets ARPM / RMA IP-3-2 oil and heat-resistant standards and ARPM / RMA IP-3-3 static conductivity requirements.\n",null,"A-41","A41","A72"]
[90022058,"A-58,GATES(HI-POWER)BELT","Hi-Power® II Belts / Courroies Hi-PowerMD II\nGates A41 V-belt Hi-Power II V80 Series. Belt Height: 5/16 Belt Top Width: 1/2 Outside Circumference (in): 60. These belts resist oil, heat, ozone, sunlight, weather, and aging. Meets ARPM / RMA IP-3-2 oil and heat-resistant standards and ARPM / RMA IP-3-3 static conductivity requirements.\n",null,"A-58","A58","A75"]
[90032043,"B-43,GATES(HI-POWER)BELT","Hi-Power® II Belts / Courroies Hi-PowerMD II\nGates A43 V-belt Hi-Power II V80 Series. Belt Height: 13/32 Belt Top Width: 21/32 Outside Circumference (in): 46. These belts resist oil, heat, ozone, sunlight, weather, and aging. Meets ARPM / RMA IP-3-2 oil and heat-resistant standards and ARPM / RMA IP-3-3 static conductivity requirements.\n",null,"B-43","B43","A80"]
[90032060,"B-60,GATES(HI-POWER)BELT","Hi-Power® II Belts / Courroies Hi-PowerMD II\nGates B60 Hi-Power II V-Belt - 9003-2060. Belt Height: 13/32 Belt Top Width: 21/32 Outside Circumference (in): 63. These belts resist oil, heat, ozone, sunlight, weather, and aging. Meets ARPM / RMA IP-3-2 oil and heat-resistant standards and ARPM / RMA IP-3-3 static conductivity requirements.\n",null,"B-60","B60","A85"]
[84002230,"4L-230,GATES(TRUFLEX)BELT","4L230 Gates Truflex light duty v-belt 23 inches long x 1/2 top width. Belt Height: 5/16 Belt Top Width: 1/2 Outside Circumference (in): 23. These belts resist oil, heat, ozone, sunlight, weather, and aging. Meets RMA oil and heat resistant standards and static conductivity requirements.\n",null,"4L-230","4L230","A105"]
[84002260,"4L-260,GATES(TRUFLEX)BELT","4L260 Gates Truflex light duty v-belt 26 inches long x 1/2 top width. Belt Height: 5/16 Belt Top Width: 1/2 Outside Circumference (in): 26. These belts resist oil, heat, ozone, sunlight, weather, and aging. Meets RMA oil and heat resistant standards and static conductivity requirements.\n",null,"4L-260","4L260","A64"]
[84002320,"4L-320,GATES(TRUFLEX)BELT","4L320 Gates Truflex light duty v-belt 32 inches long x 1/2 top width. Belt Height: 5/16 Belt Top Width: 1/2 Outside Circumference (in): 32. These belts resist oil, heat, ozone, sunlight, weather, and aging. Meets RMA oil and heat resistant standards and static conductivity requirements.\n",null,"4L-320","4L320","A112"]
[84002330,"4L-330,GATES(TRUFLEX)BELT","4L330 Gates Truflex light duty v-belt 33 inches long x 1/2 top width. Belt Height: 5/16 Belt Top Width: 1/2 Outside Circumference (in): 33. These belts resist oil, heat, ozone, sunlight, weather, and aging. Meets RMA oil and heat resistant standards and static conductivity requirements.\n",null,"4L-330","4L330","A21"]
[90032083,"B-83,GATES(HI-POWER)BELT","Hi-Power® II Belts / Courroies Hi-PowerMD II\nGates B83 Hi-Power II V-Belt - 9003-2083. Belt Height: 13/32 Belt Top Width: 21/32 Outside Circumference (in): 86. These belts resist oil, heat, ozone, sunlight, weather, and aging. Meets ARPM / RMA IP-3-2 oil and heat-resistant standards and ARPM / RMA IP-3-3 static conductivity requirements.\n",null,"B-83","B83","A22"]
[90032028,"B-28,GATES(HI-POWER)BELT","Hi-Power® II Belts / Courroies Hi-PowerMD II\nGates B28 Hi-Power II V-Belt - 9003-2028. Belt Height: 13/32 Belt Top Width: 21/32 Outside Circumference (in):31. These belts resist oil, heat, ozone, sunlight, weather, and aging. Meets ARPM / RMA IP-3-2 oil and heat-resistant standards and ARPM / RMA IP-3-3 static conductivity requirements.\n",null,"B-28","B28"]
[84001160,"3L-170,GATES(TRUFLEX)BELT","3L160 Gates Truflex light duty v-belt 16 inches long x 3/8 top width. Belt Height: 7/32 Belt Top Width: 3/8 Outside Circumference (in):16. These belts resist oil, heat, ozone, sunlight, weather, and aging. Meets RMA oil and heat resistant standards and static conductivity requirements.\n",null,"3L-170","3L170"]
[84001180,"3L-180,GATES(TRUFLEX)BELT","3L180 Gates Truflex light duty v-belt 18 inches long x 3/8 top width. Belt Height: 7/32 Belt Top Width: 3/8 Outside Circumference (in):18. These belts resist oil, heat, ozone, sunlight, weather, and aging. Meets RMA oil and heat resistant standards and static conductivity requirements.\n",null,"3L-180","3L180"]
[84001200,"3L-200,GATES(TRUFLEX)BELT","3L200 Gates Truflex light duty v-belt 20 inches long x 3/8 top width. Belt Height: 7/32 Belt Top Width: 3/8 Outside Circumference (in):20. These belts resist oil, heat, ozone, sunlight, weather, and aging. Meets RMA oil and heat resistant standards and static conductivity requirements.\n",null,"3L-200","3L200"]
[84002170,"4L-170,GATES(TRUFLEX)BELT","4L170 Gates Truflex light duty v-belt 17 inches long x 1/2 top width. Belt Height: 5/16 Belt Top Width: 1/2 Outside Circumference (in):17. These belts resist oil, heat, ozone, sunlight, weather, and aging. Meets RMA oil and heat resistant standards and static conductivity requirements.\n",null,"4L-170","4L170"]
[84002180,"4L-180,GATES(TRUFLEX)BELT","4L180 Gates Truflex light duty v-belt 18 inches long x 1/2 top width. Belt Height: 5/16 Belt Top Width: 1/2 Outside Circumference (in):18. These belts resist oil, heat, ozone, sunlight, weather, and aging. Meets RMA oil and heat resistant standards and static conductivity requirements.\n",null,"4L-180","4L180"]
[84002270,"4L-270,GATES(TRUFLEX)BELT","4L270 Gates Truflex light duty v-belt 27 inches long x 1/2 top width. Belt Height: 5/16 Belt Top Width: 1/2 Outside Circumference (in):27. These belts resist oil, heat, ozone, sunlight, weather, and aging. Meets RMA oil and heat resistant standards and static conductivity requirements.\n",null,"4L-270","4L270"]
[84002300,"4L-300,GATES(TRUFLEX)BELT","4L300 Gates Truflex light duty v-belt 30 inches long x 1/2 top width. Belt Height: 5/16 Belt Top Width: 1/2 Outside Circumference (in):30. These belts resist oil, heat, ozone, sunlight, weather, and aging. Meets RMA oil and heat resistant standards and static conductivity requirements.\n",null,"4L-300","4L300"]
[84002310,"4L-310,GATES(TRUFLEX)BELT","4L310 Gates Truflex light duty v-belt 31 inches long x 1/2 top width. Belt Height: 5/16 Belt Top Width: 1/2 Outside Circumference (in):31. These belts resist oil, heat, ozone, sunlight, weather, and aging. Meets RMA oil and heat resistant standards and static conductivity requirements.\n",null,"4L-310","4L310"]
[90022023,"A-23, GATES(HI-POWER)BELT","Hi-Power® II Belts / Courroies Hi-PowerMD II\nGates A23 V-belt Hi-Power II V80 Series. Belt outside circumference length of 25 inches. Belt Height: 5/16 Belt Top Width: 1/2 Outside Circumference (in):25. These belts resist oil, heat, ozone, sunlight, weather, and aging. Meets ARPM / RMA IP-3-2 oil and heat-resistant standards and ARPM / RMA IP-3-3 static conductivity requirements.\n",null,"A-23","A23"]
[90022025,"A-25,GATES(HI-POWER)BELT","Hi-Power® II Belts / Courroies Hi-PowerMD II\nGates A25 V-belt Hi-Power II V80 Series. Belt outside circumference length of 27 inches. Belt Height: 5/16 Belt Top Width: 1/2 Outside Circumference (in):27. These belts resist oil, heat, ozone, sunlight, weather, and aging. Meets ARPM / RMA IP-3-2 oil and heat-resistant standards and ARPM / RMA IP-3-3 static conductivity requirements.\n",null,"A-25","A25"]
[90022028,"A-28,GATES(HI-POWER)BELT","Hi-Power® II Belts / Courroies Hi-PowerMD II\nGates A28 V-belt Hi-Power II V80 Series. Belt outside circumference length of 30 inches. Belt Height: 5/16 Belt Top Width: 1/2 Outside Circumference (in):30. These belts resist oil, heat, ozone, sunlight, weather, and aging. Meets ARPM / RMA IP-3-2 oil and heat-resistant standards and ARPM / RMA IP-3-3 static conductivity requirements.\n",null,"A-28","A28"]
[90022057,"A-57,GATES(HI-POWER)BELT","Hi-Power® II Belts / Courroies Hi-PowerMD II\nGates A57 V-belt Hi-Power II V80 Series. Belt outside circumference length of 59 inches. Belt Height: 5/16 Belt Top Width: 1/2 Outside Circumference (in):59. These belts resist oil, heat, ozone, sunlight, weather, and aging. Meets ARPM / RMA IP-3-2 oil and heat-resistant standards and ARPM / RMA IP-3-3 static conductivity requirements.\n",null,"A-57","A57"]
[90022059,"A-59,GATES(HI-POWER)BELT","Hi-Power® II Belts / Courroies Hi-PowerMD II\nGates A59 V-belt Hi-Power II V80 Series. Belt outside circumference length of 61 inches. Belt Height: 5/16 Belt Top Width: 1/2 Outside Circumference (in):61. These belts resist oil, heat, ozone, sunlight, weather, and aging. Meets ARPM / RMA IP-3-2 oil and heat-resistant standards and ARPM / RMA IP-3-3 static conductivity requirements.\n",null,"A-59","A59"]
[90022060,"A60, GATES(HI-POWER)BELT","Hi-Power® II Belts / Courroies Hi-PowerMD II\nGates A60 V-belt Hi-Power II V80 Series. Belt outside circumference length of 62 inches.  Belt Height: 5/16 Belt Top Width: 1/2 Outside Circumference (in):62. These belts resist oil, heat, ozone, sunlight, weather, and aging. Meets ARPM / RMA IP-3-2 oil and heat-resistant standards and ARPM / RMA IP-3-3 static conductivity requirements.\n",null,"A60","A60"]
[90022061,"A-61,GATES(HI-POWER)BELT","Hi-Power® II Belts / Courroies Hi-PowerMD II\nGates A61 V-belt Hi-Power II V80 Series. Belt outside circumference length of 63 inches. Belt Height: 5/16 Belt Top Width: 1/2 Outside Circumference (in):63. These belts resist oil, heat, ozone, sunlight, weather, and aging. Meets ARPM / RMA IP-3-2 oil and heat-resistant standards and ARPM / RMA IP-3-3 static conductivity requirements.\n",null,"A-61","A61"]
[90022063,"A-63,GATES(HI-POWER)BELT","Hi-Power® II Belts / Courroies Hi-PowerMD II\nGates A63 V-belt Hi-Power II V80 Series. Belt outside circumference length of 65 inches. Belt Height: 5/16 Belt Top Width: 1/2 Outside Circumference (in):65. These belts resist oil, heat, ozone, sunlight, weather, and aging. Meets ARPM / RMA IP-3-2 oil and heat-resistant standards and ARPM / RMA IP-3-3 static conductivity requirements.\n",null,"A-63","A63"]
[90022065,"A-65,GATES(HI-POWER)BELT","Hi-Power® II Belts / Courroies Hi-PowerMD II\nGates A65 V-belt Hi-Power II V80 Series. Belt outside circumference length of 67 inches. Belt Height: 5/16 Belt Top Width: 1/2 Outside Circumference (in):67. These belts resist oil, heat, ozone, sunlight, weather, and aging. Meets ARPM / RMA IP-3-2 oil and heat-resistant standards and ARPM / RMA IP-3-3 static conductivity requirements.\n",null,"A-65","A65"]
[90022066,"A-66,GATES(HI-POWER)BELT","Hi-Power® II Belts / Courroies Hi-PowerMD II\nGates A66 V-belt Hi-Power II V80 Series. Belt outside circumference length of 68 inches. Belt Height: 5/16 Belt Top Width: 1/2 Outside Circumference (in):68. These belts resist oil, heat, ozone, sunlight, weather, and aging. Meets ARPM / RMA IP-3-2 oil and heat-resistant standards and ARPM / RMA IP-3-3 static conductivity requirements.\n",null,"A-66","A66"]
[90022067,"A-67,GATES(HI-POWER)BELT","Hi-Power® II Belts / Courroies Hi-PowerMD II\nGates A67 V-belt Hi-Power II V80 Series. Belt outside circumference length of 69 inches. Belt Height: 5/16 Belt Top Width: 1/2 Outside Circumference (in):69. These belts resist oil, heat, ozone, sunlight, weather, and aging. Meets ARPM / RMA IP-3-2 oil and heat-resistant standards and ARPM / RMA IP-3-3 static conductivity requirements.\n",null,"A-67","A67"]
[90022068,"A-68,GATES(HI-POWER)BELT","Hi-Power® II Belts / Courroies Hi-PowerMD II\nGates A68 V-belt Hi-Power II V80 Series. Belt outside circumference length of 70 inches. Belt Height: 5/16 Belt Top Width: 1/2 Outside Circumference (in):70. These belts resist oil, heat, ozone, sunlight, weather, and aging. Meets ARPM / RMA IP-3-2 oil and heat-resistant standards and ARPM / RMA IP-3-3 static conductivity requirements.\n",null,"A-68","A68"]
[90022069,"A-69,GATES(HI-POWER)BELT","Hi-Power® II Belts / Courroies Hi-PowerMD II\nGates A69 V-belt Hi-Power II V80 Series. Belt outside circumference length of 71 inches. Belt Height: 5/16 Belt Top Width: 1/2 Outside Circumference (in):71. These belts resist oil, heat, ozone, sunlight, weather, and aging. Meets ARPM / RMA IP-3-2 oil and heat-resistant standards and ARPM / RMA IP-3-3 static conductivity requirements.\n",null,"A-69","A69"]
[90022070,"A-70,GATES(HI-POWER)BELT","Hi-Power® II Belts / Courroies Hi-PowerMD II\nGates A70 V-belt Hi-Power II V80 Series. Belt outside circumference length of 72 inches. Belt Height: 5/16 Belt Top Width: 1/2 Outside Circumference (in):72. These belts resist oil, heat, ozone, sunlight, weather, and aging. Meets ARPM / RMA IP-3-2 oil and heat-resistant standards and ARPM / RMA IP-3-3 static conductivity requirements.\n",null,"A-70","A70"]
[90022072,"A-72,GATES(HI-POWER)BELT","Hi-Power® II Belts / Courroies Hi-PowerMD II\nGates A72 V-belt Hi-Power II V80 Series. Belt outside circumference length of 74 inches. Belt Height: 5/16 Belt Top Width: 1/2 Outside Circumference (in):74. These belts resist oil, heat, ozone, sunlight, weather, and aging. Meets ARPM / RMA IP-3-2 oil and heat-resistant standards and ARPM / RMA IP-3-3 static conductivity requirements.\n",null,"A-72","A72"]
[90022075,"A-75,GATES(HI-POWER)BELT","Hi-Power® II Belts / Courroies Hi-PowerMD II\nGates A75 V-belt Hi-Power II V80 Series. Belt outside circumference length of 77 inches. Belt Height: 5/16 Belt Top Width: 1/2 Outside Circumference (in):77. These belts resist oil, heat, ozone, sunlight, weather, and aging. Meets ARPM / RMA IP-3-2 oil and heat-resistant standards and ARPM / RMA IP-3-3 static conductivity requirements.\n",null,"A-75","A75"]
[90022080,"A-80,GATES(HI-POWER)BELT","Hi-Power® II Belts / Courroies Hi-PowerMD II\nGates A80 V-belt Hi-Power II V80 Series. Belt outside circumference length of 82 inches. Belt Height: 5/16 Belt Top Width: 1/2 Outside Circumference (in):82. These belts resist oil, heat, ozone, sunlight, weather, and aging. Meets ARPM / RMA IP-3-2 oil and heat-resistant standards and ARPM / RMA IP-3-3 static conductivity requirements.\n",null,"A-80","A80"]
[90022085,"A-85,GATES(HI-POWER)BELT","Hi-Power® II Belts / Courroies Hi-PowerMD II\nGates A85 V-belt Hi-Power II V80 Series. Belt outside circumference length of 87 inches. Belt Height: 5/16 Belt Top Width: 1/2 Outside Circumference (in):87. These belts resist oil, heat, ozone, sunlight, weather, and aging. Meets ARPM / RMA IP-3-2 oil and heat-resistant standards and ARPM / RMA IP-3-3 static conductivity requirements.\n",null,"A-85","A85"]
[90022105,"A-105,GATES(HI-POWER)BELT","Hi-Power® II Belts / Courroies Hi-PowerMD II\nGates A105 V-belt Hi-Power II V80 Series. Belt outside circumference length of 107 inches. Belt Height: 5/16 Belt Top Width: 1/2 Outside Circumference (in):107. These belts resist oil, heat, ozone, sunlight, weather, and aging. Meets ARPM / RMA IP-3-2 oil and heat-resistant standards and ARPM / RMA IP-3-3 static conductivity requirements.\n",null,"A-105","A105"]
[90022064,"A-64,GATES(HI-POWER)BELT","Hi-Power® II Belts / Courroies Hi-PowerMD II\nGates A64 V-belt Hi-Power II V80 Series. Belt outside circumference length of 66 inches. Belt Height: 5/16 Belt Top Width: 1/2 Outside Circumference (in):66. These belts resist oil, heat, ozone, sunlight, weather, and aging. Meets ARPM / RMA IP-3-2 oil and heat-resistant standards and ARPM / RMA IP-3-3 static conductivity requirements.\n",null,"A-64","A64"]
[90032030,"B-30,GATES(HI-POWER)BELT","Hi-Power® II Belts / Courroies Hi-PowerMD II\nGates B30 Hi-Power II V-Belt - 9003-2030.  Belt Height: 13/32 Belt Top Width: 21/32 Outside Circumference (in):33. These belts resist oil, heat, ozone, sunlight, weather, and aging. Meets ARPM / RMA IP-3-2 oil and heat-resistant standards and ARPM / RMA IP-3-3 static conductivity requirements.\n",null,"B-30","B30"]
[90032033,"B-33,GATES(HI-POWER)BELT","Hi-Power® II Belts / Courroies Hi-PowerMD II\nGates B33 Hi-Power II V-Belt - 9003-2033. Belt Height: 13/32 Belt Top Width: 21/32 Outside Circumference (in):36. These belts resist oil, heat, ozone, sunlight, weather, and aging. Meets ARPM / RMA IP-3-2 oil and heat-resistant standards and ARPM / RMA IP-3-3 static conductivity requirements.\n",null,"B-33","B33"]
[90032036,"B-36,GATES(HI-POWER)BELT","Hi-Power® II Belts / Courroies Hi-PowerMD II\nGates B36 Hi-Power II V-Belt - 9003-2036. Belt Height: 13/32 Belt Top Width: 21/32 Outside Circumference (in):39. These belts resist oil, heat, ozone, sunlight, weather, and aging. Meets ARPM / RMA IP-3-2 oil and heat-resistant standards and ARPM / RMA IP-3-3 static conductivity requirements.\n",null,"B-36","B36"]
[90032037,"B-37,GATES(HI-POWER)BELT","Hi-Power® II Belts / Courroies Hi-PowerMD II\nGates B37 Hi-Power II V-Belt - 9003-2037. Belt Height: 13/32 Belt Top Width: 21/32 Outside Circumference (in):40. These belts resist oil, heat, ozone, sunlight, weather, and aging. Meets ARPM / RMA IP-3-2 oil and heat-resistant standards and ARPM / RMA IP-3-3 static conductivity requirements.\n",null,"B-37","B37"]
[90032039,"B-39,GATES(HI-POWER)BELT","Hi-Power® II Belts / Courroies Hi-PowerMD II\nGates B39 Hi-Power II V-Belt - 9003-2039. Belt Height: 13/32 Belt Top Width: 21/32Outside Circumference (in):42. These belts resist oil, heat, ozone, sunlight, weather, and aging. Meets ARPM / RMA IP-3-2 oil and heat-resistant standards and ARPM / RMA IP-3-3 static conductivity requirements.\n",null,"B-39","B39"]
[90032045,"B-45,GATES(HI-POWER)BELT","Hi-Power® II Belts / Courroies Hi-PowerMD II\nGates B45 Hi-Power II V-Belt - 9003-2045. Belt Height: 13/32 Belt Top Width: 21/32 Outside Circumference (in):48. These belts resist oil, heat, ozone, sunlight, weather, and aging. Meets ARPM / RMA IP-3-2 oil and heat-resistant standards and ARPM / RMA IP-3-3 static conductivity requirements.\n",null,"B-45","B45"]
[90032049,"B-49,GATES(HI-POWER)BELT","Hi-Power® II Belts / Courroies Hi-PowerMD II\nGates B49 Hi-Power II V-Belt - 9003-2049. Belt Height: 13/32 Belt Top Width: 21/32 Outside Circumference (in):52. These belts resist oil, heat, ozone, sunlight, weather, and aging. Meets ARPM / RMA IP-3-2 oil and heat-resistant standards and ARPM / RMA IP-3-3 static conductivity requirements.\n",null,"B-49","B49"]
[90032051,"B-51,GATES(HI-POWER)BELT","Hi-Power® II Belts / Courroies Hi-PowerMD II\nGates B51 Hi-Power II V-Belt - 9003-2051. Belt Height: 13/32 Belt Top Width: 21/32 Outside Circumference (in):54. These belts resist oil, heat, ozone, sunlight, weather, and aging. Meets ARPM / RMA IP-3-2 oil and heat-resistant standards and ARPM / RMA IP-3-3 static conductivity requirements.\n",null,"B-51","B51"]
[90032052,"B-52,GATES(HI-POWER)BELT","Hi-Power® II Belts / Courroies Hi-PowerMD II\nGates B52 Hi-Power II V-Belt - 9003-2052. Belt Height: 13/32 Belt Top Width: 21/32 Outside Circumference (in):55. These belts resist oil, heat, ozone, sunlight, weather, and aging. Meets ARPM / RMA IP-3-2 oil and heat-resistant standards and ARPM / RMA IP-3-3 static conductivity requirements.\n\n",null,"B-52","B52"]
[90032053,"B-53,GATES(HI-POWER)BELT","Hi-Power® II Belts / Courroies Hi-PowerMD II\nGates B53 Hi-Power II V-Belt - 9003-2053. Belt Height: 13/32 Belt Top Width: 21/32 Outside Circumference (in):56. These belts resist oil, heat, ozone, sunlight, weather, and aging. Meets ARPM / RMA IP-3-2 oil and heat-resistant standards and ARPM / RMA IP-3-3 static conductivity requirements.\n",null,"B-53","B53"]
[90032054,"B-54,GATES(HI-POWER)BELT","Hi-Power® II Belts / Courroies Hi-PowerMD II\nGates B54 Hi-Power II V-Belt - 9003-2054. Belt Height: 13/32 Belt Top Width: 21/32 Outside Circumference (in):57. These belts resist oil, heat, ozone, sunlight, weather, and aging. Meets ARPM / RMA IP-3-2 oil and heat-resistant standards and ARPM / RMA IP-3-3 static conductivity requirements.\n\n",null,"B-54","B54"]
[90032055,"B-55,GATES(HI-POWER)BELT","Hi-Power® II Belts / Courroies Hi-PowerMD II\nGates B55 Hi-Power II V-Belt - 9003-2055. Belt Height: 13/32 Belt Top Width: 21/32 Outside Circumference (in):58. These belts resist oil, heat, ozone, sunlight, weather, and aging. Meets ARPM / RMA IP-3-2 oil and heat-resistant standards and ARPM / RMA IP-3-3 static conductivity requirements.\n\n",null,"B-55","B55"]
[90032056,"B-56,GATES(HI-POWER)BELT","Hi-Power® II Belts / Courroies Hi-PowerMD II\nGates B56 Hi-Power II V-Belt - 9003-2056. Belt Height: 13/32 Belt Top Width: 21/32 Outside Circumference (in):59. These belts resist oil, heat, ozone, sunlight, weather, and aging. Meets ARPM / RMA IP-3-2 oil and heat-resistant standards and ARPM / RMA IP-3-3 static conductivity requirements.",null,"B-56","B56"]
[90032059,"B-59,GATES(HI-POWER)BELT","Hi-Power® II Belts / Courroies Hi-PowerMD II\nGates B59 Hi-Power II V-Belt - 9003-2059. Belt Height: 13/32 Belt Top Width: 21/32 Outside Circumference (in):62. These belts resist oil, heat, ozone, sunlight, weather, and aging. Meets ARPM / RMA IP-3-2 oil and heat-resistant standards and ARPM / RMA IP-3-3 static conductivity requirements.\n\n",null,"B-59","B59"]
[90032065,"B-65,GATES(HI-POWER)BELT","Hi-Power® II Belts / Courroies Hi-PowerMD II\nGates B65 Hi-Power II V-Belt - 9003-2065. Belt Height: 13/32 Belt Top Width: 21/32 Outside Circumference (in):68. These belts resist oil, heat, ozone, sunlight, weather, and aging. Meets ARPM / RMA IP-3-2 oil and heat-resistant standards and ARPM / RMA IP-3-3 static conductivity requirements.\n",null,"B-65","B65"]
[90032066,"B-66,GATES(HI-POWER)BELT","Hi-Power® II Belts / Courroies Hi-PowerMD II\nGates B66 Hi-Power II V-Belt - 9003-2066. Belt Height: 13/32 Belt Top Width: 21/32 Outside Circumference (in):69. These belts resist oil, heat, ozone, sunlight, weather, and aging. Meets ARPM / RMA IP-3-2 oil and heat-resistant standards and ARPM / RMA IP-3-3 static conductivity requirements.\n",null,"B-66",{"$f":"SUBSTITUTE(E132,\"-\",\"\")","v":"B66"}]
[90032068,"B-68,GATES(HI-POWER)BELT","Hi-Power® II Belts / Courroies Hi-PowerMD II\nGates B68 Hi-Power II V-Belt - 9003-2068. Belt Height: 13/32 Belt Top Width: 21/32 Outside Circumference (in):71. These belts resist oil, heat, ozone, sunlight, weather, and aging. Meets ARPM / RMA IP-3-2 oil and heat-resistant standards and ARPM / RMA IP-3-3 static conductivity requirements.\n",null,"B-68","B68"]
[90032069,"B-69,GATES(HI-POWER)BELT","Hi-Power® II Belts / Courroies Hi-PowerMD II\nGates B69 Hi-Power II V-Belt - 9003-2069. Belt Height: 13/32 Belt Top Width: 21/32 Outside Circumference (in):72. These belts resist oil, heat, ozone, sunlight, weather, and aging. Meets ARPM / RMA IP-3-2 oil and heat-resistant standards and ARPM / RMA IP-3-3 static conductivity requirements.\n",null,"B-69","B69"]
[90032071,"B-71,GATES(HI-POWER)BELT","Hi-Power® II Belts / Courroies Hi-PowerMD II\nGates B71 Hi-Power II V-Belt - 9003-2071. Belt Height: 13/32 Belt Top Width: 21/32 Outside Circumference (in):74. These belts resist oil, heat, ozone, sunlight, weather, and aging. Meets ARPM / RMA IP-3-2 oil and heat-resistant standards and ARPM / RMA IP-3-3 static conductivity requirements.\n",null,"B-71","B71"]
[90032072,"B-72,GATES(HI-POWER)BELT","Hi-Power® II Belts / Courroies Hi-PowerMD II\nGates B72 Hi-Power II V-Belt - 9003-2072. Belt Height: 13/32 Belt Top Width: 21/32 Outside Circumference (in):75. These belts resist oil, heat, ozone, sunlight, weather, and aging. Meets ARPM / RMA IP-3-2 oil and heat-resistant standards and ARPM / RMA IP-3-3 static conductivity requirements.\n",null,"B-72","B72"]
[90032074,"B-74,GATES(HI-POWER)BELT","Hi-Power® II Belts / Courroies Hi-PowerMD II\nGates B74 Hi-Power II V-Belt - 9003-2074. Belt Height: 13/32 Belt Top Width: 21/32 Outside Circumference (in):77. These belts resist oil, heat, ozone, sunlight, weather, and aging. Meets ARPM / RMA IP-3-2 oil and heat-resistant standards and ARPM / RMA IP-3-3 static conductivity requirements.\n",null,"B-74","B74"]
[90032075,"B-75,GATES(HI-POWER)BELT","Gates B75 Hi-Power II V-Belt Belt Height: 13/32 Belt Top Width: 21/32 Outside Circumference (in): 78 These belts resist oil, heat, ozone, sunlight, weather, and aging. Meets ARPM / RMA IP-3-2 oil and heat-resistant standards and ARPM / RMA IP-3-3 static conductivity requirements.",null,"B-75","B75"]
[90032076,"B-76,GATES(HI-POWER)BELT","Gates B76 Hi-Power II V-Belt Belt Height: 13/32 Belt Top Width: 21/32 Outside Circumference (in): 79 These belts resist oil, heat, ozone, sunlight, weather, and aging. Meets ARPM / RMA IP-3-2 oil and heat-resistant standards and ARPM / RMA IP-3-3 static conductivity requirements.",null,"B-76","B76"]
[90032077,"B-77,GATES(HI-POWER)BELT","Gates B77 Hi-Power II V-Belt Belt Height: 13/32 Belt Top Width: 21/32 Outside Circumference (in): 80 These belts resist oil, heat, ozone, sunlight, weather, and aging. Meets ARPM / RMA IP-3-2 oil and heat-resistant standards and ARPM / RMA IP-3-3 static conductivity requirements.",null,"B-77","B77"]
[90032078,"B-78,GATES(HI-POWER)BELT","Gates B78 Hi-Power II V-Belt Belt Height: 13/32 Belt Top Width: 21/32 Outside Circumference (in): 81 These belts resist oil, heat, ozone, sunlight, weather, and aging. Meets ARPM / RMA IP-3-2 oil and heat-resistant standards and ARPM / RMA IP-3-3 static conductivity requirements.",null,"B-78","B78"]
[90032079,"B-79,GATES(HI-POWER)BELT","Gates B79 Hi-Power II V-Belt Belt Height: 13/32 Belt Top Width: 21/32 Outside Circumference (in): 82 These belts resist oil, heat, ozone, sunlight, weather, and aging. Meets ARPM / RMA IP-3-2 oil and heat-resistant standards and ARPM / RMA IP-3-3 static conductivity requirements.",null,"B-79","B79"]
[90032080,"B-80,GATES(HI-POWER)BELT","Gates B80 Hi-Power II V-Belt Belt Height: 13/32 Belt Top Width: 21/32 Outside Circumference (in): 83 These belts resist oil, heat, ozone, sunlight, weather, and aging. Meets ARPM / RMA IP-3-2 oil and heat-resistant standards and ARPM / RMA IP-3-3 static conductivity requirements.",null,"B-80","B80"]
[90032081,"B-81,GATES(HI-POWER)BELT","Gates B81 Hi-Power II V-Belt Belt Height: 13/32 Belt Top Width: 21/32 Outside Circumference (in): 84 These belts resist oil, heat, ozone, sunlight, weather, and aging. Meets ARPM / RMA IP-3-2 oil and heat-resistant standards and ARPM / RMA IP-3-3 static conductivity requirements.",null,"B-81","B81"]
[90032084,"B-84,GATES(HI-POWER)BELT","Gates B84 Hi-Power II V-Belt Belt Height: 13/32 Belt Top Width: 21/32 Outside Circumference (in): 87 These belts resist oil, heat, ozone, sunlight, weather, and aging. Meets ARPM / RMA IP-3-2 oil and heat-resistant standards and ARPM / RMA IP-3-3 static conductivity requirements.",null,"B-84","B84"]
[90032085,"B-85,GATES(HI-POWER)BELT","Gates B85 Hi-Power II V-Belt Belt Height: 13/32 Belt Top Width: 21/32 Outside Circumference (in): 88 These belts resist oil, heat, ozone, sunlight, weather, and aging. Meets ARPM / RMA IP-3-2 oil and heat-resistant standards and ARPM / RMA IP-3-3 static conductivity requirements.",null,"B-85","B85"]
[90032086,"B-86,GATES(HI-POWER)BELT","Gates B86 Hi-Power II V-Belt Belt Height: 13/32 Belt Top Width: 21/32 Outside Circumference (in): 89 These belts resist oil, heat, ozone, sunlight, weather, and aging. Meets ARPM / RMA IP-3-2 oil and heat-resistant standards and ARPM / RMA IP-3-3 static conductivity requirements.",null,"B-86","B86"]
[90032087,"B-87,GATES(HI-POWER)BELT","Gates B87 Hi-Power II V-Belt Belt Height: 13/32 Belt Top Width: 21/32 Outside Circumference (in): 90 These belts resist oil, heat, ozone, sunlight, weather, and aging. Meets ARPM / RMA IP-3-2 oil and heat-resistant standards and ARPM / RMA IP-3-3 static conductivity requirements.",null,"B-87","B87"]
[90032089,"B-89,GATES(HI-POWER)BELT","Gates B89 Hi-Power II V-Belt Belt Height: 13/32 Belt Top Width: 21/32 Outside Circumference (in): 92 These belts resist oil, heat, ozone, sunlight, weather, and aging. Meets ARPM / RMA IP-3-2 oil and heat-resistant standards and ARPM / RMA IP-3-3 static conductivity requirements.",null,"B-89","B89"]
[90032090,"B-90,GATES(HI-POWER)BELT","Gates B90 Hi-Power II V-Belt Belt Height: 13/32 Belt Top Width: 21/32 Outside Circumference (in): 93 These belts resist oil, heat, ozone, sunlight, weather, and aging. Meets ARPM / RMA IP-3-2 oil and heat-resistant standards and ARPM / RMA IP-3-3 static conductivity requirements.",null,"B-90","B90"]
[90032093,"B-93 GATES(HI-POWER)BELT","Gates B93 Hi-Power II V-Belt Belt Height: 13/32 Belt Top Width: 21/32 Outside Circumference (in): 96 These belts resist oil, heat, ozone, sunlight, weather, and aging. Meets ARPM / RMA IP-3-2 oil and heat-resistant standards and ARPM / RMA IP-3-3 static conductivity requirements.",null,"B-93","B93"]
[90032094,"B-94,GATES(HI-POWER)BELT","Gates B94 Hi-Power II V-Belt Belt Height: 13/32 Belt Top Width: 21/32 Outside Circumference (in): 97 These belts resist oil, heat, ozone, sunlight, weather, and aging. Meets ARPM / RMA IP-3-2 oil and heat-resistant standards and ARPM / RMA IP-3-3 static conductivity requirements.",null,"B-94","B94"]
[90032097,"B97, GATES(HI-POWER)BELT 97\" V-BELT","Gates B97 Hi-Power II V-Belt Belt Height: 13/32 Belt Top Width: 21/32 Outside Circumference (in): 100 These belts resist oil, heat, ozone, sunlight, weather, and aging. Meets ARPM / RMA IP-3-2 oil and heat-resistant standards and ARPM / RMA IP-3-3 static conductivity requirements.",null,"B97","B97"]
[90032105,"B105,GATES(HI-POWER)BELT","Gates B105 Hi-Power II V-Belt Belt Height: 13/32 Belt Top Width: 21/32 Outside Circumference (in): 108 These belts resist oil, heat, ozone, sunlight, weather, and aging. Meets ARPM / RMA IP-3-2 oil and heat-resistant standards and ARPM / RMA IP-3-3 static conductivity requirements.",null,"B105","B105"]
[90032106,"B-106,GATES(HI-POWER)BELT","Gates B106 Hi-Power II V-Belt Belt Height: 13/32 Belt Top Width: 21/32 Outside Circumference (in): 109 These belts resist oil, heat, ozone, sunlight, weather, and aging. Meets ARPM / RMA IP-3-2 oil and heat-resistant standards and ARPM / RMA IP-3-3 static conductivity requirements.",null,"B-106","B106"]
[90032108,"B-108,GATES(HI-POWER)BELT","Gates B108 Hi-Power II V-Belt - 9003-2108 Belt Height: 13/32 Belt Top Width: 21/32 Outside Circumference (in): 111 These belts resist oil, heat, ozone, sunlight, weather, and aging. Meets ARPM / RMA IP-3-2 oil and heat-resistant standards and ARPM / RMA IP-3-3 static conductivity requirements.",null,"B-108","B108"]
[90032120,"B-120,GATES(HI-POWER)BELT","Gates B120 Hi-Power II V-Belt Belt Height: 13/32 Belt Top Width: 21/32 Outside Circumference (in): 123 These belts resist oil, heat, ozone, sunlight, weather, and aging. Meets ARPM / RMA IP-3-2 oil and heat-resistant standards and ARPM / RMA IP-3-3 static conductivity requirements.",null,"B-120","B120"]
[90032131,"B-131,GATES(HI-POWER)BELT","Gates B131 Hi-Power II V-Belt Belt Height: 13/32 Belt Top Width: 21/32 Outside Circumference (in): 134 These belts resist oil, heat, ozone, sunlight, weather, and aging. Meets ARPM / RMA IP-3-2 oil and heat-resistant standards and ARPM / RMA IP-3-3 static conductivity requirements.",null,"B-131","B131"]
[90032136,"B-136,GATES(HI-POWER)BELT","Gates B136 Hi-Power II V-Belt Belt Height: 13/32 Belt Top Width: 21/32 Outside Circumference (in): 139 These belts resist oil, heat, ozone, sunlight, weather, and aging. Meets ARPM / RMA IP-3-2 oil and heat-resistant standards and ARPM / RMA IP-3-3 static conductivity requirements.",null,"B-136","B136"]
[90032158,"B-158,GATES(HI-POWER)BELT","Gates B158 Hi-Power II V-Belt Belt Height: 13/32 Belt Top Width: 21/32 Outside Circumference (in): 161 These belts resist oil, heat, ozone, sunlight, weather, and aging. Meets ARPM / RMA IP-3-2 oil and heat-resistant standards and ARPM / RMA IP-3-3 static conductivity requirements.",null,"B-158","B158"]
[90022112,"A-112,GATES(HI-POWER)BELT","Gates A112 V-belt Hi-Power II V80 Series.. Belt Height: 5/16 Belt Top Width: 1/2 Outside Circumference (in): 114 These belts resist oil, heat, ozone, sunlight, weather, and aging. Meets ARPM / RMA IP-3-2 oil and heat-resistant standards and ARPM / RMA IP-3-3 static conductivity requirements.",null,"A-112","A112"]
[90032082,"B-82,GATES(HI-POWER)BELT","Gates B82 Hi-Power II V-Belt  Belt Height: 13/32 Belt Top Width: 21/32 Outside Circumference (in): 85 These belts resist oil and heat, ozone, sunlight, weather, and aging. Meets ARPM / RMA IP-3-2 oil and heat-resistant standards and ARPM / RMA IP-3-3 static conductivity requirements.",null,"B-82","B82"]
[84002350,"4L-350,GATES(TRUFLEX)BELT","4L350 Gates Truflex light duty v-belt 35 inches long x 1/2 top width. Belt Height: 5/16 Outside Circumference (in): 35 Suitable for all industrial light duty applications, usually using (FHP) motors. Meets RMA oil and heat resistant standards and RMA static conductivity requirements.",null,"4L-350","4L350"]
[84002390,"4L-390,GATES(TRUFLEX)BELT","4L390 Gates Truflex light duty v-belt 39 inches long x 1/2 top width. Belt Height: 5/16 Outside Circumference (in): 39 Suitable for all industrial light duty applications, usually using (FHP) motors. Meets RMA oil and heat resistant standards and RMA static conductivity requirements.",null,"4L-390","4L390"]
[84002400,"4L-400,GATES(TRUFLEX)BELT","4L400 Gates Truflex light duty v-belt 40 inches long x 1/2 top width. Belt Height: 5/16 Outside Circumference (in): 40 Suitable for all industrial light duty applications, usually using (FHP) motors. Meets RMA oil and heat resistant standards and RMA static conductivity requirements.",null,"4L-400","4L400"]
[84002410,"4L-410,GATES(TRUFLEX)BELT","4L410 Gates Truflex light duty v-belt 41 inches long x 1/2 top width. Belt Height: 5/16 Outside Circumference (in): 41 Suitable for all industrial light duty applications, usually using (FHP) motors. Meets RMA oil and heat resistant standards and RMA static conductivity requirements.",null,"4L-410","4L410"]
[84002420,"4L-420,GATES(TRUFLEX)BELT","4L420 Gates Truflex light duty v-belt 42 inches long x 1/2 top width. Belt Height: 5/16 Outside Circumference (in): 42 Suitable for all industrial light duty applications, usually using (FHP) motors. Meets RMA oil and heat resistant standards and RMA static conductivity requirements.",null,"4L-420","4L420"]
[84002440,"4L-440,GATES(TRUFLEX)BELT","4L440 Gates Truflex light duty v-belt 44 inches long x 1/2 top width. Belt Height: 5/16 Outside Circumference (in): 44 Suitable for all industrial light duty applications, usually using (FHP) motors. Meets RMA oil and heat resistant standards and RMA static conductivity requirements.",null,"4L-440","4L440"]
[84002450,"4L-450,GATES(TRUFLEX)BELT","4L450 Gates Truflex light duty v-belt 45 inches long x 1/2 top width. Belt Height: 5/16 Outside Circumference (in): 45 Suitable for all industrial light duty applications, usually using (FHP) motors. Meets RMA oil and heat resistant standards and RMA static conductivity requirements.",null,"4L-450","4L450"]
[84002460,"4L-460,GATES(TRUFLEX)BELT","4L460 Gates Truflex light duty v-belt 46 inches long x 1/2 top width. Belt Height: 5/16 Outside Circumference (in): 46 Suitable for all industrial light duty applications, usually using (FHP) motors. Meets RMA oil and heat resistant standards and RMA static conductivity requirements.",null,"4L-460","4L460"]
[84002470,"4L-470,GATES(TRUFLEX)BELT","4L470 Gates Truflex light duty v-belt 47 inches long x 1/2 top width. Belt Height: 5/16 Outside Circumference (in):  47 Suitable for all industrial light duty applications, usually using (FHP) motors. Meets RMA oil and heat resistant standards and RMA static conductivity requirements.",null,"4L-470","4L470"]
[84002480,"4L-480,GATES(TRUFLEX)BELT","4L480 Gates Truflex light duty v-belt 48 inches long x 1/2 top width. Outside Circumference (in): 48 Suitable for all industrial light duty applications, usually using (FHP) motors. Meets RMA oil and heat resistant standards and RMA static conductivity requirements.",null,"4L-480","4L480"]
[84002490,"4L-490,GATES(TRUFLEX)BELT","4L490 Gates Truflex light duty v-belt 49 inches long x 1/2 top width. Belt Height: 5/16 Outside Circumference (in): 49 Suitable for all industrial light duty applications, usually using (FHP) motors. Meets RMA oil and heat resistant standards and RMA static conductivity requirements.",null,"4L-490","4L490"]
[84002500,"4L-500,GATES(TRUFLEX)BELT","4L500 Gates Truflex light duty v-belt 50 inches long x 1/2 top width. Belt Height: 5/16 Outside Circumference (in): 50 Suitable for all industrial light duty applications, usually using (FHP) motors. Meets RMA oil and heat resistant standards and RMA static conductivity requirements.",null,"4L-500","4L500"]
[84002510,"4L-510,GATES(TRUFLEX)BELT","4L510 Gates Truflex light duty v-belt 51 inches long x 1/2 top width. Belt Height: 5/16 Outside Circumference (in): 51 Suitable for all industrial light duty applications, usually using (FHP) motors. Meets RMA oil and heat resistant standards and RMA static conductivity requirements.",null,"4L-510","4L510"]
[84002520,"4L-520,GATES(TRUFLEX)BELT","4L520 Gates Truflex light duty v-belt 52 inches long x 1/2 top width. Belt Height: 5/16 Outside Circumference (in): 52 Suitable for all industrial light duty applications, usually using (FHP) motors. Meets RMA oil and heat resistant standards and RMA static conductivity requirements.",null,"4L-520","4L520"]
[84002530,"4L-530,GATES(TRUFLEX)BELT","4L530 Gates Truflex light duty v-belt 53 inches long x 1/2 top width. Belt Height: 5/16 Outside Circumference (in): 53 Suitable for all industrial light duty applications, usually using (FHP) motors. Meets RMA oil and heat resistant standards and RMA static conductivity requirements.",null,"4L-530","4L530"]
[84002540,"4L-540,GATES(TRUFLEX)BELT","4L540 Gates Truflex light duty v-belt 54 inches long x 1/2 top width. Belt Height: 5/16 Outside Circumference (in): 54 Suitable for all industrial light duty applications, usually using fractional horsepower (FHP) motors. Meets RMA oil and heat resistant standards and RMA static conductivity requirements.",null,"4L-540","4L540"]
[84002550,"4L-550,GATES(TRUFLEX)BELT","4L550 Gates Truflex light duty v-belt 55 inches long x 1/2 top width. Belt Height: 5/16 Outside Circumference (in): 55 Suitable for all industrial light duty applications, usually using fractional horsepower (FHP) motors. Meets RMA oil and heat resistant standards and RMA static conductivity requirements.",null,"4L-550","4L550"]
[84002560,"4L-560,GATES(TRUFLEX)BELT","4L560 Gates Truflex light duty v-belt 56 inches long x 1/2 top width. Belt Height: 5/16 Outside Circumference (in): 56 Suitable for all industrial light duty applications, usually using fractional horsepower (FHP) motors. Meets RMA oil and heat resistant standards and RMA static conductivity requirements.",null,"4L-560","4L560"]
[94120750,"3VX-750,COGGED V-BELT","Gates 3VX750 Super HC Molded Notch V80 Series V-Belt 3VX Belt Height: 21/64 Belt Top Width: 3/8 Outside Circumference (in): 75 Suitable for all industrial applications, mainly where space, weight and horsepower capacity are critical.",null,"3VX-750","3VX750"]
[94141600,"GATES 5VX-1600 V-BELT","Gates 5VX1600 Super HC Molded Notch V80 Series V-Belt 5VX Belt Top Width: 5/8 Outside Circumference (in): 160 This Belt Has a Superior Combination of Flex and Load Carrying Capacity. Suitable for all industrial applications, mainly where space, weight and horsepower capacity are critical.",null,"GATES","GATES"]
[90022021,"A-21 GATES HI-POWER BELT","Featuring a composite, multi-purpose construction, these belts resist oil and heat, ozone, sunlight, weather, and aging. Gates A21 V-belt Hi-Power II V80 Series. Belt outside circumference length of 23 inches. Belt Height: 5/16 Belt Top Width: 1/2",null,"A-21","A21"]
[90032124,"B-124,GATES(HI-POWER)BELT","Featuring a composite, multi-purpose construction, these belts resist oil and heat, ozone, sunlight, weather, and aging. Gates B124 Hi-Power II V-Belt Belt Height:  13/32 Belt Top Width:  21/32 Outside Circumference (in):  127",null,"B-124","B124"]
[90022022,"A-22 GATES HI-POWER BELT","Featuring a composite, multi-purpose construction, these belts resist oil and heat, ozone, sunlight, weather, and aging. Gates A22 V-belt Hi-Power II V80 Series. Belt outside circumference length of 24 inches. Belt Height:  5/16 Belt Top Width: 1/2",null,"A-22","A22"]

{"sheet":"Sheet5","index":3,"n_rows":0,"n_cols":0,"rows_kept":0,"cut":false,"hidden":false,"merged":[]}